Workbook

Sheet checksheet
A1: Usage quantity check sheet
A2: 2021 | B2: fiscal year
A3: No. | B3: Input | G3: Automatic calculation | M3: Maximum usage quantity (Bq) | P3: Cumulative usage quantity (Bq) | S3: Usage quantity ratio | V3: Simultaneous usage check
B4: Date | C4: Room | D4: Nuclides | E4: Amount | F4: unit | G4: Week No. | H4: Month | I4: Quarter year No. | J4: Room No. | K4: Amount (Bq) | L4: Nuclide group No. | M4: One day | N4: One week | O4: 3 month | P4: One day | Q4: One week | R4: 3mont | S4: One day | T4: One week | U4: 3 month | V4: One day | W4: One week | X4: 3 month
A5: e.g. | B5: 2020-04-18 | C5: サイクロトロン室 | D5: 89Zr | E5: 300 | F5: MBq | G5: =IF(B5="","",WEEKNUM(B5,1)) -> 16 | H5: =IF(B5="","",MONTH(B5)) -> 4 | I5: =IFERROR(CHOOSE(H5,4,4,4,1,1,1,2,2,2,3,3,3),"") -> 1 | J5: =IFERROR(VLOOKUP(C5,room!$B$3:$C$46,2,FALSE),"") -> 001 | K5: =IF(B5="","",IF(F5="GBq",E5*1000000000,IF(F5="MBq",E5*1000000,IF(F5="kBq",E5*1000,E5)))) -> 300000000 | L5: =IFERROR(VLOOKUP(D5,nuclide!$B$3:$C$51,2,FALSE),"") -> 4 | M5: =IFERROR(VLOOKUP(J5,onedaymax1[],L5+1,FALSE),"") -> 1300000000 | N5: =IFERROR(VLOOKUP(J5,oneweekmax[],L5+1,FALSE),"") -> 2600000000 | O5: =IFERROR(VLOOKUP(J5,thremonthmax[],L5+1,FALSE),"") -> 33800000000 | P5: =IF(B5="","",SUMIFS($K$5:$K$200,$B$5:$B$200,"="&B5,$J$5:$J$200,"="&J5,$L$5:$L$200,"="&L5)) -> 300000000 | Q5: =IF(B5="","",SUMIFS($K$5:$K$200,$G$5:$G$200,"="&G5,$J$5:$J$200,"="&J5,$L$5:$L$200,"="&L5)) -> 300000000 | R5: =IF(B5="","",SUMIFS($K$5:$K$200,$I$5:$I$200,"="&I5,$J$5:$J$200,"="&J5,$L$5:$L$200,"="&L5)) -> 300000000 | S5: =IFERROR(P5/M5,"") -> 0.2307692308 | T5: =IFERROR(Q5/N5,"") -> 0.1153846154 | U5: =IFERROR(R5/O5,"") -> 0.008875739645 | V5: =IF(OR(J5="003",J5="114"),SUMIFS($S$5:$S$200,$B$5:$B$200,"="&B5,$J$5:$J$200,"="&J5),"") ->  | W5: =IF(OR(J5="003",J5="114"),SUMIFS($T$5:$T$200,$G$5:$G$200,"="&G5,$J$5:$J$200,"="&J5),"") ->  | X5: =IF(OR(J5="003",J5="114"),SUMIFS($U$5:$U$200,$H$5:$H$200,"="&H5,$J$5:$J$200,"="&J5),"") -> 
A6: 1 | G6: =IF(B6="","",WEEKNUM(B6,1)) ->  | H6: =IF(B6="","",MONTH(B6)) ->  | I6: =IFERROR(CHOOSE(H6,4,4,4,1,1,1,2,2,2,3,3,3),"") ->  | J6: =IFERROR(VLOOKUP(C6,room!$B$3:$C$46,2,FALSE),"") ->  | K6: =IF(B6="","",IF(F6="GBq",E6*1000000000,IF(F6="MBq",E6*1000000,IF(F6="kBq",E6*1000,E6)))) ->  | L6: =IFERROR(VLOOKUP(D6,nuclide!$B$3:$C$51,2,FALSE),"") ->  | M6: =IFERROR(VLOOKUP(J6,onedaymax1[],L6+1,FALSE),"") ->  | N6: =IFERROR(VLOOKUP(J6,oneweekmax[],L6+1,FALSE),"") ->  | O6: =IFERROR(VLOOKUP(J6,thremonthmax[],L6+1,FALSE),"") ->  | P6: =IF(B6="","",SUMIFS($K$5:$K$200,$B$5:$B$200,"="&B6,$J$5:$J$200,"="&J6,$L$5:$L$200,"="&L6)) ->  | Q6: =IF(B6="","",SUMIFS($K$5:$K$200,$G$5:$G$200,"="&G6,$J$5:$J$200,"="&J6,$L$5:$L$200,"="&L6)) ->  | R6: =IF(B6="","",SUMIFS($K$5:$K$200,$I$5:$I$200,"="&I6,$J$5:$J$200,"="&J6,$L$5:$L$200,"="&L6)) ->  | S6: =IFERROR(P6/M6,"") ->  | V6: =IF(OR(J6="003",J6="114"),SUMIFS($S$5:$S$200,$B$5:$B$200,"="&B6,$J$5:$J$200,"="&J6),"") -> 
A7: =COUNTA($A$6:A6)+1 -> 2 | J7: =IFERROR(VLOOKUP(C7,room!$B$3:$C$46,2,FALSE),"") ->  | L7: =IFERROR(VLOOKUP(D7,nuclide!$B$3:$C$51,2,FALSE),"") ->  | M7: =IFERROR(VLOOKUP(J7,onedaymax1[],L7+1,FALSE),"") ->  | N7: =IFERROR(VLOOKUP(J7,oneweekmax[],L7+1,FALSE),"") ->  | O7: =IFERROR(VLOOKUP(J7,thremonthmax[],L7+1,FALSE),"") ->  | Q7: =IF(B7="","",SUMIFS($K$5:$K$200,$G$5:$G$200,"="&G7,$J$5:$J$200,"="&J7,$L$5:$L$200,"="&L7)) -> 
A8: =COUNTA($A$6:A7)+1 -> 3 | J8: =IFERROR(VLOOKUP(C8,room!$B$3:$C$46,2,FALSE),"") ->  | L8: =IFERROR(VLOOKUP(D8,nuclide!$B$3:$C$51,2,FALSE),"") ->  | M8: =IFERROR(VLOOKUP(J8,onedaymax1[],L8+1,FALSE),"") ->  | N8: =IFERROR(VLOOKUP(J8,oneweekmax[],L8+1,FALSE),"") ->  | O8: =IFERROR(VLOOKUP(J8,thremonthmax[],L8+1,FALSE),"") -> 
A9: =COUNTA($A$6:A8)+1 -> 4 | J9: =IFERROR(VLOOKUP(C9,room!$B$3:$C$46,2,FALSE),"") ->  | L9: =IFERROR(VLOOKUP(D9,nuclide!$B$3:$C$51,2,FALSE),"") ->  | M9: =IFERROR(VLOOKUP(J9,onedaymax1[],L9+1,FALSE),"") ->  | N9: =IFERROR(VLOOKUP(J9,oneweekmax[],L9+1,FALSE),"") ->  | O9: =IFERROR(VLOOKUP(J9,thremonthmax[],L9+1,FALSE),"") -> 
A10: =COUNTA($A$6:A9)+1 -> 5 | J10: =IFERROR(VLOOKUP(C10,room!$B$3:$C$46,2,FALSE),"") ->  | L10: =IFERROR(VLOOKUP(D10,nuclide!$B$3:$C$51,2,FALSE),"") ->  | M10: =IFERROR(VLOOKUP(J10,onedaymax1[],L10+1,FALSE),"") ->  | N10: =IFERROR(VLOOKUP(J10,oneweekmax[],L10+1,FALSE),"") ->  | O10: =IFERROR(VLOOKUP(J10,thremonthmax[],L10+1,FALSE),"") -> 
A11: =COUNTA($A$6:A10)+1 -> 6 | J11: =IFERROR(VLOOKUP(C11,room!$B$3:$C$46,2,FALSE),"") ->  | L11: =IFERROR(VLOOKUP(D11,nuclide!$B$3:$C$51,2,FALSE),"") ->  | M11: =IFERROR(VLOOKUP(J11,onedaymax1[],L11+1,FALSE),"") ->  | N11: =IFERROR(VLOOKUP(J11,oneweekmax[],L11+1,FALSE),"") ->  | O11: =IFERROR(VLOOKUP(J11,thremonthmax[],L11+1,FALSE),"") -> 
A12: =COUNTA($A$6:A11)+1 -> 7 | J12: =IFERROR(VLOOKUP(C12,room!$B$3:$C$46,2,FALSE),"") ->  | L12: =IFERROR(VLOOKUP(D12,nuclide!$B$3:$C$51,2,FALSE),"") ->  | M12: =IFERROR(VLOOKUP(J12,onedaymax1[],L12+1,FALSE),"") ->  | N12: =IFERROR(VLOOKUP(J12,oneweekmax[],L12+1,FALSE),"") ->  | O12: =IFERROR(VLOOKUP(J12,thremonthmax[],L12+1,FALSE),"") -> 
A13: =COUNTA($A$6:A12)+1 -> 8 | J13: =IFERROR(VLOOKUP(C13,room!$B$3:$C$46,2,FALSE),"") ->  | L13: =IFERROR(VLOOKUP(D13,nuclide!$B$3:$C$51,2,FALSE),"") ->  | M13: =IFERROR(VLOOKUP(J13,onedaymax1[],L13+1,FALSE),"") ->  | N13: =IFERROR(VLOOKUP(J13,oneweekmax[],L13+1,FALSE),"") ->  | O13: =IFERROR(VLOOKUP(J13,thremonthmax[],L13+1,FALSE),"") -> 
A14: =COUNTA($A$6:A13)+1 -> 9 | J14: =IFERROR(VLOOKUP(C14,room!$B$3:$C$46,2,FALSE),"") ->  | L14: =IFERROR(VLOOKUP(D14,nuclide!$B$3:$C$51,2,FALSE),"") ->  | M14: =IFERROR(VLOOKUP(J14,onedaymax1[],L14+1,FALSE),"") ->  | N14: =IFERROR(VLOOKUP(J14,oneweekmax[],L14+1,FALSE),"") ->  | O14: =IFERROR(VLOOKUP(J14,thremonthmax[],L14+1,FALSE),"") -> 
A15: =COUNTA($A$6:A14)+1 -> 10 | J15: =IFERROR(VLOOKUP(C15,room!$B$3:$C$46,2,FALSE),"") ->  | L15: =IFERROR(VLOOKUP(D15,nuclide!$B$3:$C$51,2,FALSE),"") ->  | M15: =IFERROR(VLOOKUP(J15,onedaymax1[],L15+1,FALSE),"") ->  | N15: =IFERROR(VLOOKUP(J15,oneweekmax[],L15+1,FALSE),"") ->  | O15: =IFERROR(VLOOKUP(J15,thremonthmax[],L15+1,FALSE),"") -> 
A16: =COUNTA($A$6:A15)+1 -> 11 | J16: =IFERROR(VLOOKUP(C16,room!$B$3:$C$46,2,FALSE),"") ->  | L16: =IFERROR(VLOOKUP(D16,nuclide!$B$3:$C$51,2,FALSE),"") ->  | M16: =IFERROR(VLOOKUP(J16,onedaymax1[],L16+1,FALSE),"") ->  | N16: =IFERROR(VLOOKUP(J16,oneweekmax[],L16+1,FALSE),"") ->  | O16: =IFERROR(VLOOKUP(J16,thremonthmax[],L16+1,FALSE),"") -> 
A17: =COUNTA($A$6:A16)+1 -> 12 | J17: =IFERROR(VLOOKUP(C17,room!$B$3:$C$46,2,FALSE),"") ->  | L17: =IFERROR(VLOOKUP(D17,nuclide!$B$3:$C$51,2,FALSE),"") ->  | M17: =IFERROR(VLOOKUP(J17,onedaymax1[],L17+1,FALSE),"") ->  | N17: =IFERROR(VLOOKUP(J17,oneweekmax[],L17+1,FALSE),"") ->  | O17: =IFERROR(VLOOKUP(J17,thremonthmax[],L17+1,FALSE),"") -> 
A18: =COUNTA($A$6:A17)+1 -> 13 | J18: =IFERROR(VLOOKUP(C18,room!$B$3:$C$46,2,FALSE),"") ->  | L18: =IFERROR(VLOOKUP(D18,nuclide!$B$3:$C$51,2,FALSE),"") ->  | M18: =IFERROR(VLOOKUP(J18,onedaymax1[],L18+1,FALSE),"") ->  | N18: =IFERROR(VLOOKUP(J18,oneweekmax[],L18+1,FALSE),"") ->  | O18: =IFERROR(VLOOKUP(J18,thremonthmax[],L18+1,FALSE),"") -> 
A19: =COUNTA($A$6:A18)+1 -> 14 | J19: =IFERROR(VLOOKUP(C19,room!$B$3:$C$46,2,FALSE),"") ->  | L19: =IFERROR(VLOOKUP(D19,nuclide!$B$3:$C$51,2,FALSE),"") ->  | M19: =IFERROR(VLOOKUP(J19,onedaymax1[],L19+1,FALSE),"") ->  | N19: =IFERROR(VLOOKUP(J19,oneweekmax[],L19+1,FALSE),"") ->  | O19: =IFERROR(VLOOKUP(J19,thremonthmax[],L19+1,FALSE),"") -> 
A20: =COUNTA($A$6:A19)+1 -> 15 | J20: =IFERROR(VLOOKUP(C20,room!$B$3:$C$46,2,FALSE),"") ->  | L20: =IFERROR(VLOOKUP(D20,nuclide!$B$3:$C$51,2,FALSE),"") ->  | M20: =IFERROR(VLOOKUP(J20,onedaymax1[],L20+1,FALSE),"") ->  | N20: =IFERROR(VLOOKUP(J20,oneweekmax[],L20+1,FALSE),"") ->  | O20: =IFERROR(VLOOKUP(J20,thremonthmax[],L20+1,FALSE),"") -> 
A21: =COUNTA($A$6:A20)+1 -> 16 | J21: =IFERROR(VLOOKUP(C21,room!$B$3:$C$46,2,FALSE),"") ->  | L21: =IFERROR(VLOOKUP(D21,nuclide!$B$3:$C$51,2,FALSE),"") ->  | M21: =IFERROR(VLOOKUP(J21,onedaymax1[],L21+1,FALSE),"") ->  | N21: =IFERROR(VLOOKUP(J21,oneweekmax[],L21+1,FALSE),"") ->  | O21: =IFERROR(VLOOKUP(J21,thremonthmax[],L21+1,FALSE),"") -> 
A22: =COUNTA($A$6:A21)+1 -> 17 | J22: =IFERROR(VLOOKUP(C22,room!$B$3:$C$46,2,FALSE),"") ->  | L22: =IFERROR(VLOOKUP(D22,nuclide!$B$3:$C$51,2,FALSE),"") ->  | M22: =IFERROR(VLOOKUP(J22,onedaymax1[],L22+1,FALSE),"") ->  | N22: =IFERROR(VLOOKUP(J22,oneweekmax[],L22+1,FALSE),"") ->  | O22: =IFERROR(VLOOKUP(J22,thremonthmax[],L22+1,FALSE),"") -> 
A23: =COUNTA($A$6:A22)+1 -> 18 | J23: =IFERROR(VLOOKUP(C23,room!$B$3:$C$46,2,FALSE),"") ->  | L23: =IFERROR(VLOOKUP(D23,nuclide!$B$3:$C$51,2,FALSE),"") ->  | M23: =IFERROR(VLOOKUP(J23,onedaymax1[],L23+1,FALSE),"") ->  | N23: =IFERROR(VLOOKUP(J23,oneweekmax[],L23+1,FALSE),"") ->  | O23: =IFERROR(VLOOKUP(J23,thremonthmax[],L23+1,FALSE),"") -> 
A24: =COUNTA($A$6:A23)+1 -> 19 | J24: =IFERROR(VLOOKUP(C24,room!$B$3:$C$46,2,FALSE),"") ->  | L24: =IFERROR(VLOOKUP(D24,nuclide!$B$3:$C$51,2,FALSE),"") ->  | M24: =IFERROR(VLOOKUP(J24,onedaymax1[],L24+1,FALSE),"") ->  | N24: =IFERROR(VLOOKUP(J24,oneweekmax[],L24+1,FALSE),"") ->  | O24: =IFERROR(VLOOKUP(J24,thremonthmax[],L24+1,FALSE),"") -> 
A25: =COUNTA($A$6:A24)+1 -> 20 | J25: =IFERROR(VLOOKUP(C25,room!$B$3:$C$46,2,FALSE),"") ->  | L25: =IFERROR(VLOOKUP(D25,nuclide!$B$3:$C$51,2,FALSE),"") ->  | M25: =IFERROR(VLOOKUP(J25,onedaymax1[],L25+1,FALSE),"") ->  | N25: =IFERROR(VLOOKUP(J25,oneweekmax[],L25+1,FALSE),"") ->  | O25: =IFERROR(VLOOKUP(J25,thremonthmax[],L25+1,FALSE),"") -> 
A26: =COUNTA($A$6:A25)+1 -> 21 | J26: =IFERROR(VLOOKUP(C26,room!$B$3:$C$46,2,FALSE),"") ->  | L26: =IFERROR(VLOOKUP(D26,nuclide!$B$3:$C$51,2,FALSE),"") ->  | M26: =IFERROR(VLOOKUP(J26,onedaymax1[],L26+1,FALSE),"") ->  | N26: =IFERROR(VLOOKUP(J26,oneweekmax[],L26+1,FALSE),"") ->  | O26: =IFERROR(VLOOKUP(J26,thremonthmax[],L26+1,FALSE),"") -> 
A27: =COUNTA($A$6:A26)+1 -> 22 | J27: =IFERROR(VLOOKUP(C27,room!$B$3:$C$46,2,FALSE),"") ->  | L27: =IFERROR(VLOOKUP(D27,nuclide!$B$3:$C$51,2,FALSE),"") ->  | M27: =IFERROR(VLOOKUP(J27,onedaymax1[],L27+1,FALSE),"") ->  | N27: =IFERROR(VLOOKUP(J27,oneweekmax[],L27+1,FALSE),"") ->  | O27: =IFERROR(VLOOKUP(J27,thremonthmax[],L27+1,FALSE),"") -> 
A28: =COUNTA($A$6:A27)+1 -> 23 | J28: =IFERROR(VLOOKUP(C28,room!$B$3:$C$46,2,FALSE),"") ->  | L28: =IFERROR(VLOOKUP(D28,nuclide!$B$3:$C$51,2,FALSE),"") ->  | M28: =IFERROR(VLOOKUP(J28,onedaymax1[],L28+1,FALSE),"") ->  | N28: =IFERROR(VLOOKUP(J28,oneweekmax[],L28+1,FALSE),"") ->  | O28: =IFERROR(VLOOKUP(J28,thremonthmax[],L28+1,FALSE),"") -> 
A29: =COUNTA($A$6:A28)+1 -> 24 | J29: =IFERROR(VLOOKUP(C29,room!$B$3:$C$46,2,FALSE),"") ->  | L29: =IFERROR(VLOOKUP(D29,nuclide!$B$3:$C$51,2,FALSE),"") ->  | M29: =IFERROR(VLOOKUP(J29,onedaymax1[],L29+1,FALSE),"") ->  | N29: =IFERROR(VLOOKUP(J29,oneweekmax[],L29+1,FALSE),"") ->  | O29: =IFERROR(VLOOKUP(J29,thremonthmax[],L29+1,FALSE),"") -> 
A30: =COUNTA($A$6:A29)+1 -> 25 | J30: =IFERROR(VLOOKUP(C30,room!$B$3:$C$46,2,FALSE),"") ->  | L30: =IFERROR(VLOOKUP(D30,nuclide!$B$3:$C$51,2,FALSE),"") ->  | M30: =IFERROR(VLOOKUP(J30,onedaymax1[],L30+1,FALSE),"") ->  | N30: =IFERROR(VLOOKUP(J30,oneweekmax[],L30+1,FALSE),"") ->  | O30: =IFERROR(VLOOKUP(J30,thremonthmax[],L30+1,FALSE),"") -> 
A31: =COUNTA($A$6:A30)+1 -> 26 | J31: =IFERROR(VLOOKUP(C31,room!$B$3:$C$46,2,FALSE),"") ->  | L31: =IFERROR(VLOOKUP(D31,nuclide!$B$3:$C$51,2,FALSE),"") ->  | M31: =IFERROR(VLOOKUP(J31,onedaymax1[],L31+1,FALSE),"") ->  | N31: =IFERROR(VLOOKUP(J31,oneweekmax[],L31+1,FALSE),"") ->  | O31: =IFERROR(VLOOKUP(J31,thremonthmax[],L31+1,FALSE),"") -> 
A32: =COUNTA($A$6:A31)+1 -> 27 | J32: =IFERROR(VLOOKUP(C32,room!$B$3:$C$46,2,FALSE),"") ->  | L32: =IFERROR(VLOOKUP(D32,nuclide!$B$3:$C$51,2,FALSE),"") ->  | M32: =IFERROR(VLOOKUP(J32,onedaymax1[],L32+1,FALSE),"") ->  | N32: =IFERROR(VLOOKUP(J32,oneweekmax[],L32+1,FALSE),"") ->  | O32: =IFERROR(VLOOKUP(J32,thremonthmax[],L32+1,FALSE),"") -> 
A33: =COUNTA($A$6:A32)+1 -> 28 | J33: =IFERROR(VLOOKUP(C33,room!$B$3:$C$46,2,FALSE),"") ->  | L33: =IFERROR(VLOOKUP(D33,nuclide!$B$3:$C$51,2,FALSE),"") ->  | M33: =IFERROR(VLOOKUP(J33,onedaymax1[],L33+1,FALSE),"") ->  | N33: =IFERROR(VLOOKUP(J33,oneweekmax[],L33+1,FALSE),"") ->  | O33: =IFERROR(VLOOKUP(J33,thremonthmax[],L33+1,FALSE),"") -> 
A34: =COUNTA($A$6:A33)+1 -> 29 | J34: =IFERROR(VLOOKUP(C34,room!$B$3:$C$46,2,FALSE),"") ->  | L34: =IFERROR(VLOOKUP(D34,nuclide!$B$3:$C$51,2,FALSE),"") ->  | M34: =IFERROR(VLOOKUP(J34,onedaymax1[],L34+1,FALSE),"") ->  | N34: =IFERROR(VLOOKUP(J34,oneweekmax[],L34+1,FALSE),"") ->  | O34: =IFERROR(VLOOKUP(J34,thremonthmax[],L34+1,FALSE),"") -> 
A35: =COUNTA($A$6:A34)+1 -> 30 | J35: =IFERROR(VLOOKUP(C35,room!$B$3:$C$46,2,FALSE),"") ->  | L35: =IFERROR(VLOOKUP(D35,nuclide!$B$3:$C$51,2,FALSE),"") ->  | M35: =IFERROR(VLOOKUP(J35,onedaymax1[],L35+1,FALSE),"") ->  | N35: =IFERROR(VLOOKUP(J35,oneweekmax[],L35+1,FALSE),"") ->  | O35: =IFERROR(VLOOKUP(J35,thremonthmax[],L35+1,FALSE),"") -> 
A36: =COUNTA($A$6:A35)+1 -> 31 | J36: =IFERROR(VLOOKUP(C36,room!$B$3:$C$46,2,FALSE),"") ->  | L36: =IFERROR(VLOOKUP(D36,nuclide!$B$3:$C$51,2,FALSE),"") ->  | M36: =IFERROR(VLOOKUP(J36,onedaymax1[],L36+1,FALSE),"") ->  | N36: =IFERROR(VLOOKUP(J36,oneweekmax[],L36+1,FALSE),"") ->  | O36: =IFERROR(VLOOKUP(J36,thremonthmax[],L36+1,FALSE),"") -> 
A37: =COUNTA($A$6:A36)+1 -> 32 | J37: =IFERROR(VLOOKUP(C37,room!$B$3:$C$46,2,FALSE),"") ->  | L37: =IFERROR(VLOOKUP(D37,nuclide!$B$3:$C$51,2,FALSE),"") ->  | M37: =IFERROR(VLOOKUP(J37,onedaymax1[],L37+1,FALSE),"") ->  | N37: =IFERROR(VLOOKUP(J37,oneweekmax[],L37+1,FALSE),"") ->  | O37: =IFERROR(VLOOKUP(J37,thremonthmax[],L37+1,FALSE),"") -> 
A38: =COUNTA($A$6:A37)+1 -> 33 | J38: =IFERROR(VLOOKUP(C38,room!$B$3:$C$46,2,FALSE),"") ->  | L38: =IFERROR(VLOOKUP(D38,nuclide!$B$3:$C$51,2,FALSE),"") ->  | M38: =IFERROR(VLOOKUP(J38,onedaymax1[],L38+1,FALSE),"") ->  | N38: =IFERROR(VLOOKUP(J38,oneweekmax[],L38+1,FALSE),"") ->  | O38: =IFERROR(VLOOKUP(J38,thremonthmax[],L38+1,FALSE),"") ->  | P38: =IF(B38="","",SUMIFS($K$5:$K$200,$B$5:$B$200,"="&B38,$J$5:$J$200,"="&J38,$L$5:$L$200,"="&L38)) -> 
A39: =COUNTA($A$6:A38)+1 -> 34 | J39: =IFERROR(VLOOKUP(C39,room!$B$3:$C$46,2,FALSE),"") ->  | L39: =IFERROR(VLOOKUP(D39,nuclide!$B$3:$C$51,2,FALSE),"") ->  | M39: =IFERROR(VLOOKUP(J39,onedaymax1[],L39+1,FALSE),"") ->  | N39: =IFERROR(VLOOKUP(J39,oneweekmax[],L39+1,FALSE),"") ->  | O39: =IFERROR(VLOOKUP(J39,thremonthmax[],L39+1,FALSE),"") -> 
A40: =COUNTA($A$6:A39)+1 -> 35 | J40: =IFERROR(VLOOKUP(C40,room!$B$3:$C$46,2,FALSE),"") ->  | L40: =IFERROR(VLOOKUP(D40,nuclide!$B$3:$C$51,2,FALSE),"") ->  | M40: =IFERROR(VLOOKUP(J40,onedaymax1[],L40+1,FALSE),"") ->  | N40: =IFERROR(VLOOKUP(J40,oneweekmax[],L40+1,FALSE),"") ->  | O40: =IFERROR(VLOOKUP(J40,thremonthmax[],L40+1,FALSE),"") -> 
A41: =COUNTA($A$6:A40)+1 -> 36 | J41: =IFERROR(VLOOKUP(C41,room!$B$3:$C$46,2,FALSE),"") ->  | L41: =IFERROR(VLOOKUP(D41,nuclide!$B$3:$C$51,2,FALSE),"") ->  | M41: =IFERROR(VLOOKUP(J41,onedaymax1[],L41+1,FALSE),"") ->  | N41: =IFERROR(VLOOKUP(J41,oneweekmax[],L41+1,FALSE),"") ->  | O41: =IFERROR(VLOOKUP(J41,thremonthmax[],L41+1,FALSE),"") -> 
A42: =COUNTA($A$6:A41)+1 -> 37 | J42: =IFERROR(VLOOKUP(C42,room!$B$3:$C$46,2,FALSE),"") ->  | L42: =IFERROR(VLOOKUP(D42,nuclide!$B$3:$C$51,2,FALSE),"") ->  | M42: =IFERROR(VLOOKUP(J42,onedaymax1[],L42+1,FALSE),"") ->  | N42: =IFERROR(VLOOKUP(J42,oneweekmax[],L42+1,FALSE),"") ->  | O42: =IFERROR(VLOOKUP(J42,thremonthmax[],L42+1,FALSE),"") -> 
A43: =COUNTA($A$6:A42)+1 -> 38 | J43: =IFERROR(VLOOKUP(C43,room!$B$3:$C$46,2,FALSE),"") ->  | L43: =IFERROR(VLOOKUP(D43,nuclide!$B$3:$C$51,2,FALSE),"") ->  | M43: =IFERROR(VLOOKUP(J43,onedaymax1[],L43+1,FALSE),"") ->  | N43: =IFERROR(VLOOKUP(J43,oneweekmax[],L43+1,FALSE),"") ->  | O43: =IFERROR(VLOOKUP(J43,thremonthmax[],L43+1,FALSE),"") -> 
A44: =COUNTA($A$6:A43)+1 -> 39 | J44: =IFERROR(VLOOKUP(C44,room!$B$3:$C$46,2,FALSE),"") ->  | L44: =IFERROR(VLOOKUP(D44,nuclide!$B$3:$C$51,2,FALSE),"") ->  | M44: =IFERROR(VLOOKUP(J44,onedaymax1[],L44+1,FALSE),"") ->  | N44: =IFERROR(VLOOKUP(J44,oneweekmax[],L44+1,FALSE),"") ->  | O44: =IFERROR(VLOOKUP(J44,thremonthmax[],L44+1,FALSE),"") -> 
A45: =COUNTA($A$6:A44)+1 -> 40 | J45: =IFERROR(VLOOKUP(C45,room!$B$3:$C$46,2,FALSE),"") ->  | L45: =IFERROR(VLOOKUP(D45,nuclide!$B$3:$C$51,2,FALSE),"") ->  | M45: =IFERROR(VLOOKUP(J45,onedaymax1[],L45+1,FALSE),"") ->  | N45: =IFERROR(VLOOKUP(J45,oneweekmax[],L45+1,FALSE),"") ->  | O45: =IFERROR(VLOOKUP(J45,thremonthmax[],L45+1,FALSE),"") ->  | S45: =IFERROR(P45/M45,"") -> 
A46: =COUNTA($A$6:A45)+1 -> 41 | J46: =IFERROR(VLOOKUP(C46,room!$B$3:$C$46,2,FALSE),"") ->  | L46: =IFERROR(VLOOKUP(D46,nuclide!$B$3:$C$51,2,FALSE),"") ->  | M46: =IFERROR(VLOOKUP(J46,onedaymax1[],L46+1,FALSE),"") ->  | N46: =IFERROR(VLOOKUP(J46,oneweekmax[],L46+1,FALSE),"") ->  | O46: =IFERROR(VLOOKUP(J46,thremonthmax[],L46+1,FALSE),"") -> 
A47: =COUNTA($A$6:A46)+1 -> 42 | J47: =IFERROR(VLOOKUP(C47,room!$B$3:$C$46,2,FALSE),"") ->  | L47: =IFERROR(VLOOKUP(D47,nuclide!$B$3:$C$51,2,FALSE),"") ->  | M47: =IFERROR(VLOOKUP(J47,onedaymax1[],L47+1,FALSE),"") ->  | N47: =IFERROR(VLOOKUP(J47,oneweekmax[],L47+1,FALSE),"") ->  | O47: =IFERROR(VLOOKUP(J47,thremonthmax[],L47+1,FALSE),"") -> 
A48: =COUNTA($A$6:A47)+1 -> 43 | J48: =IFERROR(VLOOKUP(C48,room!$B$3:$C$46,2,FALSE),"") ->  | L48: =IFERROR(VLOOKUP(D48,nuclide!$B$3:$C$51,2,FALSE),"") ->  | M48: =IFERROR(VLOOKUP(J48,onedaymax1[],L48+1,FALSE),"") ->  | N48: =IFERROR(VLOOKUP(J48,oneweekmax[],L48+1,FALSE),"") ->  | O48: =IFERROR(VLOOKUP(J48,thremonthmax[],L48+1,FALSE),"") -> 
A49: =COUNTA($A$6:A48)+1 -> 44 | J49: =IFERROR(VLOOKUP(C49,room!$B$3:$C$46,2,FALSE),"") ->  | L49: =IFERROR(VLOOKUP(D49,nuclide!$B$3:$C$51,2,FALSE),"") ->  | M49: =IFERROR(VLOOKUP(J49,onedaymax1[],L49+1,FALSE),"") ->  | N49: =IFERROR(VLOOKUP(J49,oneweekmax[],L49+1,FALSE),"") ->  | O49: =IFERROR(VLOOKUP(J49,thremonthmax[],L49+1,FALSE),"") -> 
A50: =COUNTA($A$6:A49)+1 -> 45 | J50: =IFERROR(VLOOKUP(C50,room!$B$3:$C$46,2,FALSE),"") ->  | L50: =IFERROR(VLOOKUP(D50,nuclide!$B$3:$C$51,2,FALSE),"") ->  | M50: =IFERROR(VLOOKUP(J50,onedaymax1[],L50+1,FALSE),"") ->  | N50: =IFERROR(VLOOKUP(J50,oneweekmax[],L50+1,FALSE),"") ->  | O50: =IFERROR(VLOOKUP(J50,thremonthmax[],L50+1,FALSE),"") -> 
A51: =COUNTA($A$6:A50)+1 -> 46 | J51: =IFERROR(VLOOKUP(C51,room!$B$3:$C$46,2,FALSE),"") ->  | L51: =IFERROR(VLOOKUP(D51,nuclide!$B$3:$C$51,2,FALSE),"") ->  | M51: =IFERROR(VLOOKUP(J51,onedaymax1[],L51+1,FALSE),"") ->  | N51: =IFERROR(VLOOKUP(J51,oneweekmax[],L51+1,FALSE),"") ->  | O51: =IFERROR(VLOOKUP(J51,thremonthmax[],L51+1,FALSE),"") -> 
A52: =COUNTA($A$6:A51)+1 -> 47 | J52: =IFERROR(VLOOKUP(C52,room!$B$3:$C$46,2,FALSE),"") ->  | L52: =IFERROR(VLOOKUP(D52,nuclide!$B$3:$C$51,2,FALSE),"") ->  | M52: =IFERROR(VLOOKUP(J52,onedaymax1[],L52+1,FALSE),"") ->  | N52: =IFERROR(VLOOKUP(J52,oneweekmax[],L52+1,FALSE),"") ->  | O52: =IFERROR(VLOOKUP(J52,thremonthmax[],L52+1,FALSE),"") -> 
A53: =COUNTA($A$6:A52)+1 -> 48 | J53: =IFERROR(VLOOKUP(C53,room!$B$3:$C$46,2,FALSE),"") ->  | L53: =IFERROR(VLOOKUP(D53,nuclide!$B$3:$C$51,2,FALSE),"") ->  | M53: =IFERROR(VLOOKUP(J53,onedaymax1[],L53+1,FALSE),"") ->  | N53: =IFERROR(VLOOKUP(J53,oneweekmax[],L53+1,FALSE),"") ->  | O53: =IFERROR(VLOOKUP(J53,thremonthmax[],L53+1,FALSE),"") -> 
A54: =COUNTA($A$6:A53)+1 -> 49 | J54: =IFERROR(VLOOKUP(C54,room!$B$3:$C$46,2,FALSE),"") ->  | L54: =IFERROR(VLOOKUP(D54,nuclide!$B$3:$C$51,2,FALSE),"") ->  | M54: =IFERROR(VLOOKUP(J54,onedaymax1[],L54+1,FALSE),"") ->  | N54: =IFERROR(VLOOKUP(J54,oneweekmax[],L54+1,FALSE),"") ->  | O54: =IFERROR(VLOOKUP(J54,thremonthmax[],L54+1,FALSE),"") -> 
A55: =COUNTA($A$6:A54)+1 -> 50 | J55: =IFERROR(VLOOKUP(C55,room!$B$3:$C$46,2,FALSE),"") ->  | L55: =IFERROR(VLOOKUP(D55,nuclide!$B$3:$C$51,2,FALSE),"") ->  | M55: =IFERROR(VLOOKUP(J55,onedaymax1[],L55+1,FALSE),"") ->  | N55: =IFERROR(VLOOKUP(J55,oneweekmax[],L55+1,FALSE),"") ->  | O55: =IFERROR(VLOOKUP(J55,thremonthmax[],L55+1,FALSE),"") -> 
A56: =COUNTA($A$6:A55)+1 -> 51 | J56: =IFERROR(VLOOKUP(C56,room!$B$3:$C$46,2,FALSE),"") ->  | L56: =IFERROR(VLOOKUP(D56,nuclide!$B$3:$C$51,2,FALSE),"") ->  | M56: =IFERROR(VLOOKUP(J56,onedaymax1[],L56+1,FALSE),"") ->  | N56: =IFERROR(VLOOKUP(J56,oneweekmax[],L56+1,FALSE),"") ->  | O56: =IFERROR(VLOOKUP(J56,thremonthmax[],L56+1,FALSE),"") -> 
A57: =COUNTA($A$6:A56)+1 -> 52 | J57: =IFERROR(VLOOKUP(C57,room!$B$3:$C$46,2,FALSE),"") ->  | L57: =IFERROR(VLOOKUP(D57,nuclide!$B$3:$C$51,2,FALSE),"") ->  | M57: =IFERROR(VLOOKUP(J57,onedaymax1[],L57+1,FALSE),"") ->  | N57: =IFERROR(VLOOKUP(J57,oneweekmax[],L57+1,FALSE),"") ->  | O57: =IFERROR(VLOOKUP(J57,thremonthmax[],L57+1,FALSE),"") -> 
A58: =COUNTA($A$6:A57)+1 -> 53 | J58: =IFERROR(VLOOKUP(C58,room!$B$3:$C$46,2,FALSE),"") ->  | L58: =IFERROR(VLOOKUP(D58,nuclide!$B$3:$C$51,2,FALSE),"") ->  | M58: =IFERROR(VLOOKUP(J58,onedaymax1[],L58+1,FALSE),"") ->  | N58: =IFERROR(VLOOKUP(J58,oneweekmax[],L58+1,FALSE),"") ->  | O58: =IFERROR(VLOOKUP(J58,thremonthmax[],L58+1,FALSE),"") -> 
A59: =COUNTA($A$6:A58)+1 -> 54 | J59: =IFERROR(VLOOKUP(C59,room!$B$3:$C$46,2,FALSE),"") ->  | L59: =IFERROR(VLOOKUP(D59,nuclide!$B$3:$C$51,2,FALSE),"") ->  | M59: =IFERROR(VLOOKUP(J59,onedaymax1[],L59+1,FALSE),"") ->  | N59: =IFERROR(VLOOKUP(J59,oneweekmax[],L59+1,FALSE),"") ->  | O59: =IFERROR(VLOOKUP(J59,thremonthmax[],L59+1,FALSE),"") -> 
A60: =COUNTA($A$6:A59)+1 -> 55 | J60: =IFERROR(VLOOKUP(C60,room!$B$3:$C$46,2,FALSE),"") ->  | L60: =IFERROR(VLOOKUP(D60,nuclide!$B$3:$C$51,2,FALSE),"") ->  | M60: =IFERROR(VLOOKUP(J60,onedaymax1[],L60+1,FALSE),"") ->  | N60: =IFERROR(VLOOKUP(J60,oneweekmax[],L60+1,FALSE),"") ->  | O60: =IFERROR(VLOOKUP(J60,thremonthmax[],L60+1,FALSE),"") ->  | P60: =IF(B60="","",SUMIFS($K$5:$K$200,$B$5:$B$200,"="&B60,$J$5:$J$200,"="&J60,$L$5:$L$200,"="&L60)) -> 
A61: =COUNTA($A$6:A60)+1 -> 56 | J61: =IFERROR(VLOOKUP(C61,room!$B$3:$C$46,2,FALSE),"") ->  | L61: =IFERROR(VLOOKUP(D61,nuclide!$B$3:$C$51,2,FALSE),"") ->  | M61: =IFERROR(VLOOKUP(J61,onedaymax1[],L61+1,FALSE),"") ->  | N61: =IFERROR(VLOOKUP(J61,oneweekmax[],L61+1,FALSE),"") ->  | O61: =IFERROR(VLOOKUP(J61,thremonthmax[],L61+1,FALSE),"") ->  | S61: =IFERROR(P61/M61,"") -> 
A62: =COUNTA($A$6:A61)+1 -> 57 | J62: =IFERROR(VLOOKUP(C62,room!$B$3:$C$46,2,FALSE),"") ->  | L62: =IFERROR(VLOOKUP(D62,nuclide!$B$3:$C$51,2,FALSE),"") ->  | M62: =IFERROR(VLOOKUP(J62,onedaymax1[],L62+1,FALSE),"") ->  | N62: =IFERROR(VLOOKUP(J62,oneweekmax[],L62+1,FALSE),"") ->  | O62: =IFERROR(VLOOKUP(J62,thremonthmax[],L62+1,FALSE),"") ->  | P62: =IF(B62="","",SUMIFS($K$5:$K$200,$B$5:$B$200,"="&B62,$J$5:$J$200,"="&J62,$L$5:$L$200,"="&L62)) -> 
A63: =COUNTA($A$6:A62)+1 -> 58 | J63: =IFERROR(VLOOKUP(C63,room!$B$3:$C$46,2,FALSE),"") ->  | L63: =IFERROR(VLOOKUP(D63,nuclide!$B$3:$C$51,2,FALSE),"") ->  | M63: =IFERROR(VLOOKUP(J63,onedaymax1[],L63+1,FALSE),"") ->  | N63: =IFERROR(VLOOKUP(J63,oneweekmax[],L63+1,FALSE),"") ->  | O63: =IFERROR(VLOOKUP(J63,thremonthmax[],L63+1,FALSE),"") -> 
A64: =COUNTA($A$6:A63)+1 -> 59 | J64: =IFERROR(VLOOKUP(C64,room!$B$3:$C$46,2,FALSE),"") ->  | L64: =IFERROR(VLOOKUP(D64,nuclide!$B$3:$C$51,2,FALSE),"") ->  | M64: =IFERROR(VLOOKUP(J64,onedaymax1[],L64+1,FALSE),"") ->  | N64: =IFERROR(VLOOKUP(J64,oneweekmax[],L64+1,FALSE),"") ->  | O64: =IFERROR(VLOOKUP(J64,thremonthmax[],L64+1,FALSE),"") -> 
A65: =COUNTA($A$6:A64)+1 -> 60 | J65: =IFERROR(VLOOKUP(C65,room!$B$3:$C$46,2,FALSE),"") ->  | L65: =IFERROR(VLOOKUP(D65,nuclide!$B$3:$C$51,2,FALSE),"") ->  | M65: =IFERROR(VLOOKUP(J65,onedaymax1[],L65+1,FALSE),"") ->  | N65: =IFERROR(VLOOKUP(J65,oneweekmax[],L65+1,FALSE),"") ->  | O65: =IFERROR(VLOOKUP(J65,thremonthmax[],L65+1,FALSE),"") -> 
A66: =COUNTA($A$6:A65)+1 -> 61 | J66: =IFERROR(VLOOKUP(C66,room!$B$3:$C$46,2,FALSE),"") ->  | L66: =IFERROR(VLOOKUP(D66,nuclide!$B$3:$C$51,2,FALSE),"") ->  | M66: =IFERROR(VLOOKUP(J66,onedaymax1[],L66+1,FALSE),"") ->  | N66: =IFERROR(VLOOKUP(J66,oneweekmax[],L66+1,FALSE),"") ->  | O66: =IFERROR(VLOOKUP(J66,thremonthmax[],L66+1,FALSE),"") -> 
A67: =COUNTA($A$6:A66)+1 -> 62 | J67: =IFERROR(VLOOKUP(C67,room!$B$3:$C$46,2,FALSE),"") ->  | L67: =IFERROR(VLOOKUP(D67,nuclide!$B$3:$C$51,2,FALSE),"") ->  | M67: =IFERROR(VLOOKUP(J67,onedaymax1[],L67+1,FALSE),"") ->  | N67: =IFERROR(VLOOKUP(J67,oneweekmax[],L67+1,FALSE),"") ->  | O67: =IFERROR(VLOOKUP(J67,thremonthmax[],L67+1,FALSE),"") -> 
A68: =COUNTA($A$6:A67)+1 -> 63 | J68: =IFERROR(VLOOKUP(C68,room!$B$3:$C$46,2,FALSE),"") ->  | L68: =IFERROR(VLOOKUP(D68,nuclide!$B$3:$C$51,2,FALSE),"") ->  | M68: =IFERROR(VLOOKUP(J68,onedaymax1[],L68+1,FALSE),"") ->  | N68: =IFERROR(VLOOKUP(J68,oneweekmax[],L68+1,FALSE),"") ->  | O68: =IFERROR(VLOOKUP(J68,thremonthmax[],L68+1,FALSE),"") -> 
A69: =COUNTA($A$6:A68)+1 -> 64 | J69: =IFERROR(VLOOKUP(C69,room!$B$3:$C$46,2,FALSE),"") ->  | L69: =IFERROR(VLOOKUP(D69,nuclide!$B$3:$C$51,2,FALSE),"") ->  | M69: =IFERROR(VLOOKUP(J69,onedaymax1[],L69+1,FALSE),"") ->  | N69: =IFERROR(VLOOKUP(J69,oneweekmax[],L69+1,FALSE),"") ->  | O69: =IFERROR(VLOOKUP(J69,thremonthmax[],L69+1,FALSE),"") ->  | W69: =IF(OR(J69="003",J69="114"),SUMIFS($T$5:$T$200,$G$5:$G$200,"="&G69,$J$5:$J$200,"="&J69),"") ->  | X69: =IF(OR(J69="003",J69="114"),SUMIFS($U$5:$U$200,$H$5:$H$200,"="&H69,$J$5:$J$200,"="&J69),"") -> 
A70: =COUNTA($A$6:A69)+1 -> 65 | G70: =IF(B70="","",WEEKNUM(B70,1)) ->  | H70: =IF(B70="","",MONTH(B70)) ->  | I70: =IFERROR(CHOOSE(H70,4,4,4,1,1,1,2,2,2,3,3,3),"") ->  | J70: =IFERROR(VLOOKUP(C70,room!$B$3:$C$46,2,FALSE),"") ->  | K70: =IF(B70="","",IF(F70="GBq",E70*1000000000,IF(F70="MBq",E70*1000000,IF(F70="kBq",E70*1000,E70)))) ->  | L70: =IFERROR(VLOOKUP(D70,nuclide!$B$3:$C$51,2,FALSE),"") ->  | M70: =IFERROR(VLOOKUP(J70,onedaymax1[],L70+1,FALSE),"") ->  | N70: =IFERROR(VLOOKUP(J70,oneweekmax[],L70+1,FALSE),"") ->  | O70: =IFERROR(VLOOKUP(J70,thremonthmax[],L70+1,FALSE),"") ->  | P70: =IF(B70="","",SUMIFS($K$5:$K$200,$B$5:$B$200,"="&B70,$J$5:$J$200,"="&J70,$L$5:$L$200,"="&L70)) ->  | R70: =IF(B70="","",SUMIFS($K$5:$K$200,$I$5:$I$200,"="&I70,$J$5:$J$200,"="&J70,$L$5:$L$200,"="&L70)) ->  | V70: =IF(OR(J70="003",J70="114"),SUMIFS($S$5:$S$200,$B$5:$B$200,"="&B70,$J$5:$J$200,"="&J70),"") -> 
A71: =COUNTA($A$6:A70)+1 -> 66 | J71: =IFERROR(VLOOKUP(C71,room!$B$3:$C$46,2,FALSE),"") ->  | L71: =IFERROR(VLOOKUP(D71,nuclide!$B$3:$C$51,2,FALSE),"") ->  | M71: =IFERROR(VLOOKUP(J71,onedaymax1[],L71+1,FALSE),"") ->  | N71: =IFERROR(VLOOKUP(J71,oneweekmax[],L71+1,FALSE),"") ->  | O71: =IFERROR(VLOOKUP(J71,thremonthmax[],L71+1,FALSE),"") ->  | Q71: =IF(B71="","",SUMIFS($K$5:$K$200,$G$5:$G$200,"="&G71,$J$5:$J$200,"="&J71,$L$5:$L$200,"="&L71)) -> 
A72: =COUNTA($A$6:A71)+1 -> 67 | J72: =IFERROR(VLOOKUP(C72,room!$B$3:$C$46,2,FALSE),"") ->  | L72: =IFERROR(VLOOKUP(D72,nuclide!$B$3:$C$51,2,FALSE),"") ->  | M72: =IFERROR(VLOOKUP(J72,onedaymax1[],L72+1,FALSE),"") ->  | N72: =IFERROR(VLOOKUP(J72,oneweekmax[],L72+1,FALSE),"") ->  | O72: =IFERROR(VLOOKUP(J72,thremonthmax[],L72+1,FALSE),"") -> 
A73: =COUNTA($A$6:A72)+1 -> 68 | J73: =IFERROR(VLOOKUP(C73,room!$B$3:$C$46,2,FALSE),"") ->  | L73: =IFERROR(VLOOKUP(D73,nuclide!$B$3:$C$51,2,FALSE),"") ->  | M73: =IFERROR(VLOOKUP(J73,onedaymax1[],L73+1,FALSE),"") ->  | N73: =IFERROR(VLOOKUP(J73,oneweekmax[],L73+1,FALSE),"") ->  | O73: =IFERROR(VLOOKUP(J73,thremonthmax[],L73+1,FALSE),"") -> 
A74: =COUNTA($A$6:A73)+1 -> 69 | J74: =IFERROR(VLOOKUP(C74,room!$B$3:$C$46,2,FALSE),"") ->  | L74: =IFERROR(VLOOKUP(D74,nuclide!$B$3:$C$51,2,FALSE),"") ->  | M74: =IFERROR(VLOOKUP(J74,onedaymax1[],L74+1,FALSE),"") ->  | N74: =IFERROR(VLOOKUP(J74,oneweekmax[],L74+1,FALSE),"") ->  | O74: =IFERROR(VLOOKUP(J74,thremonthmax[],L74+1,FALSE),"") -> 
A75: =COUNTA($A$6:A74)+1 -> 70 | J75: =IFERROR(VLOOKUP(C75,room!$B$3:$C$46,2,FALSE),"") ->  | L75: =IFERROR(VLOOKUP(D75,nuclide!$B$3:$C$51,2,FALSE),"") ->  | M75: =IFERROR(VLOOKUP(J75,onedaymax1[],L75+1,FALSE),"") ->  | N75: =IFERROR(VLOOKUP(J75,oneweekmax[],L75+1,FALSE),"") ->  | O75: =IFERROR(VLOOKUP(J75,thremonthmax[],L75+1,FALSE),"") -> 
A76: =COUNTA($A$6:A75)+1 -> 71 | J76: =IFERROR(VLOOKUP(C76,room!$B$3:$C$46,2,FALSE),"") ->  | L76: =IFERROR(VLOOKUP(D76,nuclide!$B$3:$C$51,2,FALSE),"") ->  | M76: =IFERROR(VLOOKUP(J76,onedaymax1[],L76+1,FALSE),"") ->  | N76: =IFERROR(VLOOKUP(J76,oneweekmax[],L76+1,FALSE),"") ->  | O76: =IFERROR(VLOOKUP(J76,thremonthmax[],L76+1,FALSE),"") -> 
A77: =COUNTA($A$6:A76)+1 -> 72 | J77: =IFERROR(VLOOKUP(C77,room!$B$3:$C$46,2,FALSE),"") ->  | L77: =IFERROR(VLOOKUP(D77,nuclide!$B$3:$C$51,2,FALSE),"") ->  | M77: =IFERROR(VLOOKUP(J77,onedaymax1[],L77+1,FALSE),"") ->  | N77: =IFERROR(VLOOKUP(J77,oneweekmax[],L77+1,FALSE),"") ->  | O77: =IFERROR(VLOOKUP(J77,thremonthmax[],L77+1,FALSE),"") -> 
A78: =COUNTA($A$6:A77)+1 -> 73 | J78: =IFERROR(VLOOKUP(C78,room!$B$3:$C$46,2,FALSE),"") ->  | L78: =IFERROR(VLOOKUP(D78,nuclide!$B$3:$C$51,2,FALSE),"") ->  | M78: =IFERROR(VLOOKUP(J78,onedaymax1[],L78+1,FALSE),"") ->  | N78: =IFERROR(VLOOKUP(J78,oneweekmax[],L78+1,FALSE),"") ->  | O78: =IFERROR(VLOOKUP(J78,thremonthmax[],L78+1,FALSE),"") -> 
A79: =COUNTA($A$6:A78)+1 -> 74 | J79: =IFERROR(VLOOKUP(C79,room!$B$3:$C$46,2,FALSE),"") ->  | L79: =IFERROR(VLOOKUP(D79,nuclide!$B$3:$C$51,2,FALSE),"") ->  | M79: =IFERROR(VLOOKUP(J79,onedaymax1[],L79+1,FALSE),"") ->  | N79: =IFERROR(VLOOKUP(J79,oneweekmax[],L79+1,FALSE),"") ->  | O79: =IFERROR(VLOOKUP(J79,thremonthmax[],L79+1,FALSE),"") -> 
A80: =COUNTA($A$6:A79)+1 -> 75 | J80: =IFERROR(VLOOKUP(C80,room!$B$3:$C$46,2,FALSE),"") ->  | L80: =IFERROR(VLOOKUP(D80,nuclide!$B$3:$C$51,2,FALSE),"") ->  | M80: =IFERROR(VLOOKUP(J80,onedaymax1[],L80+1,FALSE),"") ->  | N80: =IFERROR(VLOOKUP(J80,oneweekmax[],L80+1,FALSE),"") ->  | O80: =IFERROR(VLOOKUP(J80,thremonthmax[],L80+1,FALSE),"") -> 
A81: =COUNTA($A$6:A80)+1 -> 76 | J81: =IFERROR(VLOOKUP(C81,room!$B$3:$C$46,2,FALSE),"") ->  | L81: =IFERROR(VLOOKUP(D81,nuclide!$B$3:$C$51,2,FALSE),"") ->  | M81: =IFERROR(VLOOKUP(J81,onedaymax1[],L81+1,FALSE),"") ->  | N81: =IFERROR(VLOOKUP(J81,oneweekmax[],L81+1,FALSE),"") ->  | O81: =IFERROR(VLOOKUP(J81,thremonthmax[],L81+1,FALSE),"") -> 
A82: =COUNTA($A$6:A81)+1 -> 77 | J82: =IFERROR(VLOOKUP(C82,room!$B$3:$C$46,2,FALSE),"") ->  | L82: =IFERROR(VLOOKUP(D82,nuclide!$B$3:$C$51,2,FALSE),"") ->  | M82: =IFERROR(VLOOKUP(J82,onedaymax1[],L82+1,FALSE),"") ->  | N82: =IFERROR(VLOOKUP(J82,oneweekmax[],L82+1,FALSE),"") ->  | O82: =IFERROR(VLOOKUP(J82,thremonthmax[],L82+1,FALSE),"") -> 
A83: =COUNTA($A$6:A82)+1 -> 78 | J83: =IFERROR(VLOOKUP(C83,room!$B$3:$C$46,2,FALSE),"") ->  | L83: =IFERROR(VLOOKUP(D83,nuclide!$B$3:$C$51,2,FALSE),"") ->  | M83: =IFERROR(VLOOKUP(J83,onedaymax1[],L83+1,FALSE),"") ->  | N83: =IFERROR(VLOOKUP(J83,oneweekmax[],L83+1,FALSE),"") ->  | O83: =IFERROR(VLOOKUP(J83,thremonthmax[],L83+1,FALSE),"") -> 
A84: =COUNTA($A$6:A83)+1 -> 79 | J84: =IFERROR(VLOOKUP(C84,room!$B$3:$C$46,2,FALSE),"") ->  | L84: =IFERROR(VLOOKUP(D84,nuclide!$B$3:$C$51,2,FALSE),"") ->  | M84: =IFERROR(VLOOKUP(J84,onedaymax1[],L84+1,FALSE),"") ->  | N84: =IFERROR(VLOOKUP(J84,oneweekmax[],L84+1,FALSE),"") ->  | O84: =IFERROR(VLOOKUP(J84,thremonthmax[],L84+1,FALSE),"") -> 
A85: =COUNTA($A$6:A84)+1 -> 80 | J85: =IFERROR(VLOOKUP(C85,room!$B$3:$C$46,2,FALSE),"") ->  | L85: =IFERROR(VLOOKUP(D85,nuclide!$B$3:$C$51,2,FALSE),"") ->  | M85: =IFERROR(VLOOKUP(J85,onedaymax1[],L85+1,FALSE),"") ->  | N85: =IFERROR(VLOOKUP(J85,oneweekmax[],L85+1,FALSE),"") ->  | O85: =IFERROR(VLOOKUP(J85,thremonthmax[],L85+1,FALSE),"") -> 
A86: =COUNTA($A$6:A85)+1 -> 81 | J86: =IFERROR(VLOOKUP(C86,room!$B$3:$C$46,2,FALSE),"") ->  | L86: =IFERROR(VLOOKUP(D86,nuclide!$B$3:$C$51,2,FALSE),"") ->  | M86: =IFERROR(VLOOKUP(J86,onedaymax1[],L86+1,FALSE),"") ->  | N86: =IFERROR(VLOOKUP(J86,oneweekmax[],L86+1,FALSE),"") ->  | O86: =IFERROR(VLOOKUP(J86,thremonthmax[],L86+1,FALSE),"") -> 
A87: =COUNTA($A$6:A86)+1 -> 82 | J87: =IFERROR(VLOOKUP(C87,room!$B$3:$C$46,2,FALSE),"") ->  | L87: =IFERROR(VLOOKUP(D87,nuclide!$B$3:$C$51,2,FALSE),"") ->  | M87: =IFERROR(VLOOKUP(J87,onedaymax1[],L87+1,FALSE),"") ->  | N87: =IFERROR(VLOOKUP(J87,oneweekmax[],L87+1,FALSE),"") ->  | O87: =IFERROR(VLOOKUP(J87,thremonthmax[],L87+1,FALSE),"") -> 
A88: =COUNTA($A$6:A87)+1 -> 83 | J88: =IFERROR(VLOOKUP(C88,room!$B$3:$C$46,2,FALSE),"") ->  | L88: =IFERROR(VLOOKUP(D88,nuclide!$B$3:$C$51,2,FALSE),"") ->  | M88: =IFERROR(VLOOKUP(J88,onedaymax1[],L88+1,FALSE),"") ->  | N88: =IFERROR(VLOOKUP(J88,oneweekmax[],L88+1,FALSE),"") ->  | O88: =IFERROR(VLOOKUP(J88,thremonthmax[],L88+1,FALSE),"") -> 
A89: =COUNTA($A$6:A88)+1 -> 84 | J89: =IFERROR(VLOOKUP(C89,room!$B$3:$C$46,2,FALSE),"") ->  | L89: =IFERROR(VLOOKUP(D89,nuclide!$B$3:$C$51,2,FALSE),"") ->  | M89: =IFERROR(VLOOKUP(J89,onedaymax1[],L89+1,FALSE),"") ->  | N89: =IFERROR(VLOOKUP(J89,oneweekmax[],L89+1,FALSE),"") ->  | O89: =IFERROR(VLOOKUP(J89,thremonthmax[],L89+1,FALSE),"") -> 
A90: =COUNTA($A$6:A89)+1 -> 85 | J90: =IFERROR(VLOOKUP(C90,room!$B$3:$C$46,2,FALSE),"") ->  | L90: =IFERROR(VLOOKUP(D90,nuclide!$B$3:$C$51,2,FALSE),"") ->  | M90: =IFERROR(VLOOKUP(J90,onedaymax1[],L90+1,FALSE),"") ->  | N90: =IFERROR(VLOOKUP(J90,oneweekmax[],L90+1,FALSE),"") ->  | O90: =IFERROR(VLOOKUP(J90,thremonthmax[],L90+1,FALSE),"") -> 
A91: =COUNTA($A$6:A90)+1 -> 86 | J91: =IFERROR(VLOOKUP(C91,room!$B$3:$C$46,2,FALSE),"") ->  | L91: =IFERROR(VLOOKUP(D91,nuclide!$B$3:$C$51,2,FALSE),"") ->  | M91: =IFERROR(VLOOKUP(J91,onedaymax1[],L91+1,FALSE),"") ->  | N91: =IFERROR(VLOOKUP(J91,oneweekmax[],L91+1,FALSE),"") ->  | O91: =IFERROR(VLOOKUP(J91,thremonthmax[],L91+1,FALSE),"") -> 
A92: =COUNTA($A$6:A91)+1 -> 87 | J92: =IFERROR(VLOOKUP(C92,room!$B$3:$C$46,2,FALSE),"") ->  | L92: =IFERROR(VLOOKUP(D92,nuclide!$B$3:$C$51,2,FALSE),"") ->  | M92: =IFERROR(VLOOKUP(J92,onedaymax1[],L92+1,FALSE),"") ->  | N92: =IFERROR(VLOOKUP(J92,oneweekmax[],L92+1,FALSE),"") ->  | O92: =IFERROR(VLOOKUP(J92,thremonthmax[],L92+1,FALSE),"") -> 
A93: =COUNTA($A$6:A92)+1 -> 88 | J93: =IFERROR(VLOOKUP(C93,room!$B$3:$C$46,2,FALSE),"") ->  | L93: =IFERROR(VLOOKUP(D93,nuclide!$B$3:$C$51,2,FALSE),"") ->  | M93: =IFERROR(VLOOKUP(J93,onedaymax1[],L93+1,FALSE),"") ->  | N93: =IFERROR(VLOOKUP(J93,oneweekmax[],L93+1,FALSE),"") ->  | O93: =IFERROR(VLOOKUP(J93,thremonthmax[],L93+1,FALSE),"") -> 
A94: =COUNTA($A$6:A93)+1 -> 89 | J94: =IFERROR(VLOOKUP(C94,room!$B$3:$C$46,2,FALSE),"") ->  | L94: =IFERROR(VLOOKUP(D94,nuclide!$B$3:$C$51,2,FALSE),"") ->  | M94: =IFERROR(VLOOKUP(J94,onedaymax1[],L94+1,FALSE),"") ->  | N94: =IFERROR(VLOOKUP(J94,oneweekmax[],L94+1,FALSE),"") ->  | O94: =IFERROR(VLOOKUP(J94,thremonthmax[],L94+1,FALSE),"") -> 
A95: =COUNTA($A$6:A94)+1 -> 90 | J95: =IFERROR(VLOOKUP(C95,room!$B$3:$C$46,2,FALSE),"") ->  | L95: =IFERROR(VLOOKUP(D95,nuclide!$B$3:$C$51,2,FALSE),"") ->  | M95: =IFERROR(VLOOKUP(J95,onedaymax1[],L95+1,FALSE),"") ->  | N95: =IFERROR(VLOOKUP(J95,oneweekmax[],L95+1,FALSE),"") ->  | O95: =IFERROR(VLOOKUP(J95,thremonthmax[],L95+1,FALSE),"") -> 
A96: =COUNTA($A$6:A95)+1 -> 91 | J96: =IFERROR(VLOOKUP(C96,room!$B$3:$C$46,2,FALSE),"") ->  | L96: =IFERROR(VLOOKUP(D96,nuclide!$B$3:$C$51,2,FALSE),"") ->  | M96: =IFERROR(VLOOKUP(J96,onedaymax1[],L96+1,FALSE),"") ->  | N96: =IFERROR(VLOOKUP(J96,oneweekmax[],L96+1,FALSE),"") ->  | O96: =IFERROR(VLOOKUP(J96,thremonthmax[],L96+1,FALSE),"") -> 
A97: =COUNTA($A$6:A96)+1 -> 92 | J97: =IFERROR(VLOOKUP(C97,room!$B$3:$C$46,2,FALSE),"") ->  | L97: =IFERROR(VLOOKUP(D97,nuclide!$B$3:$C$51,2,FALSE),"") ->  | M97: =IFERROR(VLOOKUP(J97,onedaymax1[],L97+1,FALSE),"") ->  | N97: =IFERROR(VLOOKUP(J97,oneweekmax[],L97+1,FALSE),"") ->  | O97: =IFERROR(VLOOKUP(J97,thremonthmax[],L97+1,FALSE),"") -> 
A98: =COUNTA($A$6:A97)+1 -> 93 | J98: =IFERROR(VLOOKUP(C98,room!$B$3:$C$46,2,FALSE),"") ->  | L98: =IFERROR(VLOOKUP(D98,nuclide!$B$3:$C$51,2,FALSE),"") ->  | M98: =IFERROR(VLOOKUP(J98,onedaymax1[],L98+1,FALSE),"") ->  | N98: =IFERROR(VLOOKUP(J98,oneweekmax[],L98+1,FALSE),"") ->  | O98: =IFERROR(VLOOKUP(J98,thremonthmax[],L98+1,FALSE),"") -> 
A99: =COUNTA($A$6:A98)+1 -> 94 | J99: =IFERROR(VLOOKUP(C99,room!$B$3:$C$46,2,FALSE),"") ->  | L99: =IFERROR(VLOOKUP(D99,nuclide!$B$3:$C$51,2,FALSE),"") ->  | M99: =IFERROR(VLOOKUP(J99,onedaymax1[],L99+1,FALSE),"") ->  | N99: =IFERROR(VLOOKUP(J99,oneweekmax[],L99+1,FALSE),"") ->  | O99: =IFERROR(VLOOKUP(J99,thremonthmax[],L99+1,FALSE),"") -> 
A100: =COUNTA($A$6:A99)+1 -> 95 | J100: =IFERROR(VLOOKUP(C100,room!$B$3:$C$46,2,FALSE),"") ->  | L100: =IFERROR(VLOOKUP(D100,nuclide!$B$3:$C$51,2,FALSE),"") ->  | M100: =IFERROR(VLOOKUP(J100,onedaymax1[],L100+1,FALSE),"") ->  | N100: =IFERROR(VLOOKUP(J100,oneweekmax[],L100+1,FALSE),"") ->  | O100: =IFERROR(VLOOKUP(J100,thremonthmax[],L100+1,FALSE),"") -> 
A101: =COUNTA($A$6:A100)+1 -> 96 | J101: =IFERROR(VLOOKUP(C101,room!$B$3:$C$46,2,FALSE),"") ->  | L101: =IFERROR(VLOOKUP(D101,nuclide!$B$3:$C$51,2,FALSE),"") ->  | M101: =IFERROR(VLOOKUP(J101,onedaymax1[],L101+1,FALSE),"") ->  | N101: =IFERROR(VLOOKUP(J101,oneweekmax[],L101+1,FALSE),"") ->  | O101: =IFERROR(VLOOKUP(J101,thremonthmax[],L101+1,FALSE),"") -> 
A102: =COUNTA($A$6:A101)+1 -> 97 | J102: =IFERROR(VLOOKUP(C102,room!$B$3:$C$46,2,FALSE),"") ->  | L102: =IFERROR(VLOOKUP(D102,nuclide!$B$3:$C$51,2,FALSE),"") ->  | M102: =IFERROR(VLOOKUP(J102,onedaymax1[],L102+1,FALSE),"") ->  | N102: =IFERROR(VLOOKUP(J102,oneweekmax[],L102+1,FALSE),"") ->  | O102: =IFERROR(VLOOKUP(J102,thremonthmax[],L102+1,FALSE),"") ->  | S102: =IFERROR(P102/M102,"") -> 
A103: =COUNTA($A$6:A102)+1 -> 98 | J103: =IFERROR(VLOOKUP(C103,room!$B$3:$C$46,2,FALSE),"") ->  | L103: =IFERROR(VLOOKUP(D103,nuclide!$B$3:$C$51,2,FALSE),"") ->  | M103: =IFERROR(VLOOKUP(J103,onedaymax1[],L103+1,FALSE),"") ->  | N103: =IFERROR(VLOOKUP(J103,oneweekmax[],L103+1,FALSE),"") ->  | O103: =IFERROR(VLOOKUP(J103,thremonthmax[],L103+1,FALSE),"") -> 
A104: =COUNTA($A$6:A103)+1 -> 99 | J104: =IFERROR(VLOOKUP(C104,room!$B$3:$C$46,2,FALSE),"") ->  | L104: =IFERROR(VLOOKUP(D104,nuclide!$B$3:$C$51,2,FALSE),"") ->  | M104: =IFERROR(VLOOKUP(J104,onedaymax1[],L104+1,FALSE),"") ->  | N104: =IFERROR(VLOOKUP(J104,oneweekmax[],L104+1,FALSE),"") ->  | O104: =IFERROR(VLOOKUP(J104,thremonthmax[],L104+1,FALSE),"") -> 
A105: =COUNTA($A$6:A104)+1 -> 100 | J105: =IFERROR(VLOOKUP(C105,room!$B$3:$C$46,2,FALSE),"") ->  | L105: =IFERROR(VLOOKUP(D105,nuclide!$B$3:$C$51,2,FALSE),"") ->  | M105: =IFERROR(VLOOKUP(J105,onedaymax1[],L105+1,FALSE),"") ->  | N105: =IFERROR(VLOOKUP(J105,oneweekmax[],L105+1,FALSE),"") ->  | O105: =IFERROR(VLOOKUP(J105,thremonthmax[],L105+1,FALSE),"") -> 

Sheet room
B2: 使用室 | C2: 場所
B3: サイクロトロン室 | C3: 001
B4: ホットラボ室セル内 | C4: 001
B5: ホットラボ室セル外 | C5: 002
B6: 小中動物用PETカメラ室 | C6: 003
B7: サル乾燥室 | C7: 004
B8: サル一時飼育室 | C8: 005
B9: 配分室 | C9: 006 | D9: 102
B10: 廃棄物仕分室 | C10: 101
B11: 物理実験室 | C11: 103
B12: 化学実験室 | C12: 103
B13: 分析機器室２ | C13: 104
B14: 暗室１ | C14: 105
B15: 暗室２ | C15: 105
B16: 暗室３ | C16: 105
B17: 分析機器室１ | C17: 104
B18: 細胞病理実験室 | C18: 007 | D18: 106
B19: 動物組織培養室 | C19: 104
B20: 測定後処理室 | C20: 104
B21: β線測定室 | C21: 008 | D21: 107
B22: γ線測定室 | C22: 008
B23: 暗室４ | C23: 105
B24: 暗室５ | C24: 105
B25: 液クロ測定室 | C25: 104
B26: トレーサー実験室１ | C26: 006 | D26: 108
B27: トレーサー実験室２ | C27: 109
B28: 分析機器室３ | C28: 104
B29: 化学分析室 | C29: 104
B30: 細胞分画調整室 | C30: 104
B31: 動物実験室１ | C31: 104
B32: 動物飼育室１ | C32: 104
B33: 動物実験室２ | C33: 009 | D33: 104
B34: 動物飼育室２ | C34: 010 | D34: 104
B35: 動物実験室３ | C35: 104
B36: 動物乾燥室 | C36: 110
B37: 測定室 | C37: 104
B38: 植物組織培養室 | C38: 104
B39: 研究開発室 | C39: 104
B40: 分子細胞実験室P２ | C40: 011 | D40: 116
B41: 分子細胞実験室P３ | C41: 111
B42: 前処理蒸留室 | C42: 112
B43: 小動物用CT室 | C43: 113
B44: SPECT室 | C44: 114
B45: 高レベルトレーサー実験室 | C45: 115
B46: GMP検定室 | C46: 012 | D46: 104

Sheet nuclide
B2: 核種一覧 | C2: グループ | E2: 単位
B3: 11C | C3: 1 | E3: Bq
B4: 13N | C4: 1 | E4: kBq
B5: 15O | C5: 2 | E5: MBq
B6: 18F | C6: 3 | E6: GBq
B7: 64Cu | C7: 4
B8: 89Zr | C8: 4
B9: 67Ga | C9: 5
B10: 99mTc | C10: 5
B11: 111In | C11: 5
B12: 201Tl | C12: 5
B13: 123I | C13: 6
B14: 124I | C14: 7
B15: 125I | C15: 7
B16: 131I | C16: 7
B17: 24Na | C17: 8
B18: 54Mn | C18: 8
B19: 55Fe | C19: 8
B20: 57Co | C20: 8
B21: 59Fe | C21: 8
B22: 60Co | C22: 8
B23: 64Cu | C23: 8
B24: 65Zn | C24: 8
B25: 86Rb | C25: 8
B26: 89Sr | C26: 8
B27: 109Cd | C27: 8
B28: 110mAg | C28: 8
B29: 115mCd | C29: 8
B30: 137Cs | C30: 8
B31: 137mBa | C31: 8
B32: 140Ba | C32: 8
B33: 140La | C33: 8
B34: 177Lu | C34: 8
B35: 99Mo | C35: 9
B36: 3H | C36: 10
B37: 14C | C37: 11
B38: 32P | C38: 11
B39: 33P | C39: 11
B40: 35S | C40: 11
B41: 36Cl | C41: 11
B42: 45Ca | C42: 11
B43: 51Cr | C43: 11
B44: 63Ni | C44: 11
B45: 90Y | C45: 12
B46: 90Sr | C46: 12
B47: 226Ra | C47: 13
B48: 222Rn | C48: 13
B49: 228Ra | C49: 13
B50: 224Ra | C50: 13
B51: 220Rn | C51: 13

Sheet one_day_max
B1: 場所 | C1: グループ
A2: 使用室 | B2: 列1 | C2: 1 | D2: 2 | E2: 3 | F2: 4 | G2: 5 | H2: 6 | I2: 7 | J2: 8 | K2: 9 | L2: 10 | M2: 11 | N2: 12 | O2: 13
A3: サイクロトロン室 | B3: 001 | C3: 114000000000 | D3: 9600000000 | E3: 168000000000 | F3: 1300000000
A4: ホットラボ室セル内 | B4: 001 | C4: 114000000000 | D4: 9600000000 | E4: 168000000000 | F4: 1300000000
A5: ホットラボ室セル外 | B5: 002 | C5: 11400000000 | E5: 16000000000 | F5: 1300000000
A6: 小中動物用PETカメラ室 | B6: 003 | C6: 6000000000 | D6: 9600000000 | E6: 2000000000 | F6: 500000000 | G6: 370000000 | H6: 370000000 | I6: 3700000
A7: サル乾燥室 | B7: 004 | C7: 370000000 | D7: 960000000 | E7: 370000000 | F7: 50000000 | G7: 50000000 | H7: 50000000 | I7: 40000000
A8: サル一時飼育室 | B8: 005 | C8: 60000000 | D8: 900000000 | E8: 120000000 | F8: 50000000 | G8: 40000000 | H8: 40000000 | I8: 40000000
A9: 配分室 | B9: 006 | C9: 370000000 | E9: 370000000 | F9: 300000000 | G9: 1850000000 | H9: 370000000 | I9: 50000000 | J9: 2000000 | K9: 1850000000 | L9: 2000000000 | M9: 200000000 | N9: 200000 | O9: 15000
A10: 廃棄物仕分室 | B10: 101 | C10: 37000000 | D10: 96000000 | E10: 37000000 | F10: 30000000 | G10: 555000000 | H10: 77000000 | I10: 50000000 | J10: 1200000 | K10: 555000000 | L10: 1000000000 | M10: 100000000 | N10: 20000 | O10: 15000
A11: 物理実験室 | B11: 103 | G11: 10000000 | H11: 10000000 | I11: 10000000 | J11: 2000000 | L11: 40000000 | M11: 40000000 | N11: 200000
A12: 化学実験室 | B12: 103 | G12: 10000000 | H12: 10000000 | I12: 10000000 | J12: 2000000 | L12: 40000000 | M12: 40000000 | N12: 200000
A13: 分析機器室２ | B13: 104 | G13: 10000000 | H13: 10000000 | I13: 10000000 | J13: 2000000 | L13: 40000000 | M13: 40000000 | N13: 200000
A14: 暗室１ | B14: 105 | G14: 1000000 | H14: 1000000 | I14: 1000000 | J14: 1000000 | L14: 4000000 | M14: 4000000 | N14: 20000
A15: 暗室２ | B15: 105 | G15: 1000000 | H15: 1000000 | I15: 1000000 | J15: 1000000 | L15: 4000000 | M15: 4000000 | N15: 20000
A16: 暗室３ | B16: 105 | G16: 1000000 | H16: 1000000 | I16: 1000000 | J16: 1000000 | L16: 4000000 | M16: 4000000 | N16: 20000
A17: 分析機器室１ | B17: 104 | G17: 10000000 | H17: 10000000 | I17: 10000000 | J17: 2000000 | L17: 40000000 | M17: 40000000 | N17: 200000
A18: 細胞病理実験室 | B18: 007 | C18: 370000000 | D18: 960000000 | E18: 370000000 | F18: 80000000 | G18: 120000000 | H18: 185000000 | I18: 20000000 | J18: 2000000 | L18: 40000000 | M18: 40000000 | N18: 200000
A19: 動物組織培養室 | B19: 104 | G19: 10000000 | H19: 10000000 | I19: 10000000 | J19: 2000000 | L19: 40000000 | M19: 40000000 | N19: 200000
A20: 測定後処理室 | B20: 104 | G20: 10000000 | H20: 10000000 | I20: 10000000 | J20: 2000000 | L20: 40000000 | M20: 40000000 | N20: 200000
A21: β線測定室 | B21: 008 | C21: 37000000 | E21: 37000000 | F21: 30000000 | G21: 10000000 | H21: 10000000 | I21: 10000000 | J21: 2000000 | L21: 40000000 | M21: 40000000 | N21: 200000 | O21: 15000
A22: γ線測定室 | B22: 008 | C22: 37000000 | E22: 37000000 | F22: 30000000 | G22: 10000000 | H22: 10000000 | I22: 10000000 | J22: 2000000 | L22: 40000000 | M22: 40000000 | N22: 200000 | O22: 15000
A23: 暗室４ | B23: 105 | G23: 1000000 | H23: 1000000 | I23: 1000000 | J23: 1000000 | L23: 4000000 | M23: 4000000 | N23: 20000
A24: 暗室５ | B24: 105 | G24: 1000000 | H24: 1000000 | I24: 1000000 | J24: 1000000 | L24: 4000000 | M24: 4000000 | N24: 20000
A25: 液クロ測定室 | B25: 104 | G25: 10000000 | H25: 10000000 | I25: 10000000 | J25: 2000000 | L25: 40000000 | M25: 40000000 | N25: 200000
A26: トレーサー実験室１ | B26: 006 | C26: 370000000 | E26: 370000000 | F26: 300000000 | G26: 370000000 | H26: 370000000 | I26: 37000000 | J26: 2000000 | L26: 1000000000 | M26: 100000000 | N26: 200000
A27: トレーサー実験室２ | B27: 109 | G27: 10000000 | H27: 10000000 | I27: 10000000 | J27: 2000000 | L27: 1000000000 | M27: 100000000 | N27: 200000 | O27: 15000
A28: 分析機器室３ | B28: 104 | G28: 10000000 | H28: 10000000 | I28: 10000000 | J28: 2000000 | L28: 40000000 | M28: 40000000 | N28: 200000
A29: 化学分析室 | B29: 104 | G29: 10000000 | H29: 10000000 | I29: 10000000 | J29: 2000000 | L29: 40000000 | M29: 40000000 | N29: 200000
A30: 細胞分画調整室 | B30: 104 | G30: 10000000 | H30: 10000000 | I30: 10000000 | J30: 2000000 | L30: 40000000 | M30: 40000000 | N30: 200000
A31: 動物実験室１ | B31: 104 | G31: 10000000 | H31: 10000000 | I31: 10000000 | J31: 2000000 | L31: 40000000 | M31: 40000000 | N31: 200000
A32: 動物飼育室１ | B32: 104 | G32: 10000000 | H32: 10000000 | I32: 10000000 | J32: 2000000 | L32: 40000000 | M32: 40000000 | N32: 200000
A33: 動物実験室２ | B33: 009 | C33: 370000000 | D33: 96000000 | E33: 500000000 | F33: 50000000 | G33: 10000000 | H33: 10000000 | I33: 10000000 | J33: 2000000 | L33: 40000000 | M33: 40000000 | N33: 200000
A34: 動物飼育室２ | B34: 010 | C34: 370000000 | D34: 96000000 | E34: 100000000 | F34: 20000000 | G34: 10000000 | H34: 10000000 | I34: 10000000 | J34: 2000000 | L34: 40000000 | M34: 40000000 | N34: 200000
A35: 動物実験室３ | B35: 104 | G35: 10000000 | H35: 10000000 | I35: 10000000 | J35: 2000000 | L35: 40000000 | M35: 40000000 | N35: 200000
A36: 動物乾燥室 | B36: 110 | C36: 370000000 | D36: 96000000 | E36: 185000000 | F36: 150000000 | G36: 555000000 | H36: 77000000 | I36: 10000000 | J36: 1200000 | L36: 1000000000 | M36: 100000000 | N36: 200000
A37: 測定室 | B37: 104 | C37: 37000000 | E37: 37000000 | F37: 30000000 | G37: 10000000 | H37: 10000000 | I37: 10000000 | J37: 2000000 | L37: 40000000 | M37: 40000000 | N37: 200000
A38: 植物組織培養室 | B38: 104 | G38: 10000000 | H38: 10000000 | I38: 10000000 | J38: 2000000 | L38: 40000000 | M38: 40000000 | N38: 200000
A39: 研究開発室 | B39: 104 | G39: 10000000 | H39: 10000000 | I39: 10000000 | J39: 2000000 | L39: 40000000 | M39: 40000000 | N39: 200000
A40: 分子細胞実験室P２ | B40: 011 | C40: 370000000 | D40: 960000000 | E40: 370000000 | F40: 300000000 | G40: 370000000 | H40: 370000000 | I40: 37000000 | J40: 2000000 | L40: 40000000 | M40: 40000000 | N40: 200000
A41: 分子細胞実験室P３ | B41: 111 | L41: 200000000 | M41: 20000000
A42: 前処理蒸留室 | B42: 112 | G42: 10000000 | H42: 10000000 | I42: 10000000 | J42: 2000000 | L42: 40000000 | M42: 4000000 | N42: 20000
A43: 小動物用CT室 | B43: 113 | C43: 370000000 | D43: 960000000 | E43: 185000000 | F43: 150000000 | G43: 370000000 | H43: 370000000 | I43: 25000000
A44: SPECT室 | B44: 114 | C44: 50000000 | E44: 50000000 | F44: 50000000 | G44: 1110000000 | H44: 100000000 | I44: 20000000
A45: 高レベルトレーサー実験室 | B45: 115 | G45: 555000000 | H45: 77000000 | I45: 50000000 | J45: 2000000 | L45: 2000000000 | M45: 200000000 | N45: 200000
A46: GMP検定室 | B46: 012 | C46: 500000000 | E46: 2000000000 | F46: 50000000 | G46: 10000000 | H46: 10000000 | I46: 10000000 | J46: 2000000 | L46: 40000000 | M46: 40000000 | N46: 200000

Sheet one_week_max
B1: 1週最大
B2: 使用室 | C2: 場所 | D2: 1 | E2: 2 | F2: 3 | G2: 4 | H2: 5 | I2: 6 | J2: 7 | K2: 8 | L2: 9 | M2: 10 | N2: 11 | O2: 12 | P2: 13 | S2: １日 最大 | T2: １日 最大 | U2: １日 最大 | V2: １日 最大 | W2: １日 最大 | X2: １日 最大 | Y2: １日 最大 | Z2: １日 最大 | AA2: １日 最大 | AB2: １日 最大 | AC2: １日 最大 | AD2: １日 最大 | AE2: １日 最大
B3: サイクロトロン室 | C3: 001 | D3: =S3*5 -> 570000000000 | E3: =T3*2 -> 19200000000 | F3: =U3*5 -> 840000000000 | G3: =V3*2 -> 2600000000 | S3: 114000000000 | T3: 9600000000 | U3: 168000000000 | V3: 1300000000
B4: ホットラボ室セル内 | C4: 001 | D4: 570000000000 | E4: =T4*2 -> 19200000000 | F4: 840000000000 | G4: 2600000000 | S4: 114000000000 | T4: 9600000000 | U4: 168000000000 | V4: 1300000000
B5: ホットラボ室セル外 | C5: 002 | D5: 57000000000 | F5: 80000000000 | G5: 2600000000 | S5: 11400000000 | U5: 16000000000 | V5: 1300000000
B6: 小中動物用PETカメラ室 | C6: 003 | D6: 30000000000 | E6: =T6*2 -> 19200000000 | F6: 10000000000 | G6: 1000000000 | H6: =W6*5 -> 1850000000 | I6: =X6*5 -> 1850000000 | J6: =Y6*5 -> 18500000 | S6: 6000000000 | T6: 9600000000 | U6: 2000000000 | V6: 500000000 | W6: 370000000 | X6: 370000000 | Y6: 3700000
B7: サル乾燥室 | C7: 004 | D7: 1850000000 | E7: =T7*2 -> 1920000000 | F7: 1850000000 | G7: 100000000 | H7: 250000000 | I7: 250000000 | J7: 200000000 | S7: 370000000 | T7: 960000000 | U7: 370000000 | V7: 50000000 | W7: 50000000 | X7: 50000000 | Y7: 40000000
B8: サル一時飼育室 | C8: 005 | D8: 300000000 | E8: =T8*2 -> 1800000000 | F8: 600000000 | G8: 100000000 | H8: 200000000 | I8: 200000000 | J8: 200000000 | S8: 60000000 | T8: 900000000 | U8: 120000000 | V8: 50000000 | W8: 40000000 | X8: 40000000 | Y8: 40000000
B9: 配分室 | C9: 006 | D9: 1850000000 | F9: 1850000000 | G9: 600000000 | H9: 9250000000 | I9: 1850000000 | J9: 250000000 | K9: =Z9*5 -> 10000000 | L9: 9250000000 | M9: 10000000000 | N9: 1000000000 | O9: 1000000 | P9: 75000 | S9: 370000000 | U9: 370000000 | V9: 300000000 | W9: 1850000000 | X9: 370000000 | Y9: 50000000 | Z9: 2000000 | AA9: 1850000000 | AB9: 2000000000 | AC9: 200000000 | AD9: 200000 | AE9: 15000
B10: 廃棄物仕分室 | C10: 101 | D10: 185000000 | E10: =T10*2 -> 192000000 | F10: 185000000 | G10: 60000000 | H10: 2775000000 | I10: 385000000 | J10: 250000000 | K10: 6000000 | L10: 2775000000 | M10: 5000000000 | N10: 500000000 | O10: 100000 | P10: 75000 | S10: 37000000 | T10: 96000000 | U10: 37000000 | V10: 30000000 | W10: 555000000 | X10: 77000000 | Y10: 50000000 | Z10: 1200000 | AA10: 555000000 | AB10: 1000000000 | AC10: 100000000 | AD10: 20000 | AE10: 15000
B11: 物理実験室 | C11: 103 | H11: 50000000 | I11: 50000000 | J11: 50000000 | K11: =Z11*5 -> 10000000 | M11: =AB11*5 -> 200000000 | N11: =AC11*5 -> 200000000 | O11: =AD11*5 -> 1000000 | W11: 10000000 | X11: 10000000 | Y11: 10000000 | Z11: 2000000 | AB11: 40000000 | AC11: 40000000 | AD11: 200000
B12: 化学実験室 | C12: 103 | H12: 50000000 | I12: 50000000 | J12: 50000000 | K12: 10000000 | M12: 200000000 | N12: 200000000 | O12: 1000000 | W12: 10000000 | X12: 10000000 | Y12: 10000000 | Z12: 2000000 | AB12: 40000000 | AC12: 40000000 | AD12: 200000
B13: 分析機器室２ | C13: 104 | H13: 50000000 | I13: 50000000 | J13: 50000000 | K13: 10000000 | M13: 200000000 | N13: 200000000 | O13: 1000000 | W13: 10000000 | X13: 10000000 | Y13: 10000000 | Z13: 2000000 | AB13: 40000000 | AC13: 40000000 | AD13: 200000
B14: 暗室１ | C14: 105 | H14: 5000000 | I14: 5000000 | J14: 5000000 | K14: 5000000 | M14: 20000000 | N14: 20000000 | O14: 100000 | W14: 1000000 | X14: 1000000 | Y14: 1000000 | Z14: 1000000 | AB14: 4000000 | AC14: 4000000 | AD14: 20000
B15: 暗室２ | C15: 105 | H15: 5000000 | I15: 5000000 | J15: 5000000 | K15: 5000000 | M15: 20000000 | N15: 20000000 | O15: 100000 | W15: 1000000 | X15: 1000000 | Y15: 1000000 | Z15: 1000000 | AB15: 4000000 | AC15: 4000000 | AD15: 20000
B16: 暗室３ | C16: 105 | H16: 5000000 | I16: 5000000 | J16: 5000000 | K16: 5000000 | M16: 20000000 | N16: 20000000 | O16: 100000 | W16: 1000000 | X16: 1000000 | Y16: 1000000 | Z16: 1000000 | AB16: 4000000 | AC16: 4000000 | AD16: 20000
B17: 分析機器室１ | C17: 104 | H17: 50000000 | I17: 50000000 | J17: 50000000 | K17: 10000000 | M17: 200000000 | N17: 200000000 | O17: 1000000 | W17: 10000000 | X17: 10000000 | Y17: 10000000 | Z17: 2000000 | AB17: 40000000 | AC17: 40000000 | AD17: 200000
B18: 細胞病理実験室 | C18: 007 | D18: =S18*5 -> 1850000000 | E18: =T18*2 -> 1920000000 | F18: =U18*5 -> 1850000000 | G18: =V18*2 -> 160000000 | H18: 600000000 | I18: 925000000 | J18: 100000000 | K18: 10000000 | M18: 200000000 | N18: 200000000 | O18: 1000000 | S18: 370000000 | T18: 960000000 | U18: 370000000 | V18: 80000000 | W18: 120000000 | X18: 185000000 | Y18: 20000000 | Z18: 2000000 | AB18: 40000000 | AC18: 40000000 | AD18: 200000
B19: 動物組織培養室 | C19: 104 | H19: 50000000 | I19: 50000000 | J19: 50000000 | K19: 10000000 | M19: 200000000 | N19: 200000000 | O19: 1000000 | W19: 10000000 | X19: 10000000 | Y19: 10000000 | Z19: 2000000 | AB19: 40000000 | AC19: 40000000 | AD19: 200000
B20: 測定後処理室 | C20: 104 | H20: 50000000 | I20: 50000000 | J20: 50000000 | K20: 10000000 | M20: 200000000 | N20: 200000000 | O20: 1000000 | W20: 10000000 | X20: 10000000 | Y20: 10000000 | Z20: 2000000 | AB20: 40000000 | AC20: 40000000 | AD20: 200000
B21: β線測定室 | C21: 008 | D21: =S21*5 -> 185000000 | F21: =U21*5 -> 185000000 | G21: =V21*2 -> 60000000 | H21: 50000000 | I21: 50000000 | J21: 50000000 | K21: 10000000 | M21: 200000000 | N21: 200000000 | O21: 1000000 | P21: =AE21*5 -> 75000 | S21: 37000000 | U21: 37000000 | V21: 30000000 | W21: 10000000 | X21: 10000000 | Y21: 10000000 | Z21: 2000000 | AB21: 40000000 | AC21: 40000000 | AD21: 200000 | AE21: 15000
B22: γ線測定室 | C22: 008 | D22: =S22*5 -> 185000000 | F22: =U22*5 -> 185000000 | G22: =V22*2 -> 60000000 | H22: 50000000 | I22: 50000000 | J22: 50000000 | K22: 10000000 | M22: 200000000 | N22: 200000000 | O22: 1000000 | P22: =AE22*5 -> 75000 | S22: 37000000 | U22: 37000000 | V22: 30000000 | W22: 10000000 | X22: 10000000 | Y22: 10000000 | Z22: 2000000 | AB22: 40000000 | AC22: 40000000 | AD22: 200000 | AE22: 15000
B23: 暗室４ | C23: 105 | H23: 5000000 | I23: 5000000 | J23: 5000000 | K23: 5000000 | M23: 20000000 | N23: 20000000 | O23: 100000 | W23: 1000000 | X23: 1000000 | Y23: 1000000 | Z23: 1000000 | AB23: 4000000 | AC23: 4000000 | AD23: 20000
B24: 暗室５ | C24: 105 | H24: 5000000 | I24: 5000000 | J24: 5000000 | K24: 5000000 | M24: 20000000 | N24: 20000000 | O24: 100000 | W24: 1000000 | X24: 1000000 | Y24: 1000000 | Z24: 1000000 | AB24: 4000000 | AC24: 4000000 | AD24: 20000
B25: 液クロ測定室 | C25: 104 | H25: 50000000 | I25: 50000000 | J25: 50000000 | K25: 10000000 | M25: 200000000 | N25: 200000000 | O25: 1000000 | W25: 10000000 | X25: 10000000 | Y25: 10000000 | Z25: 2000000 | AB25: 40000000 | AC25: 40000000 | AD25: 200000
B26: トレーサー実験室１ | C26: 006 | D26: =S26*5 -> 1850000000 | F26: =U26*5 -> 1850000000 | G26: =V26*2 -> 600000000 | H26: 1850000000 | I26: 1850000000 | J26: 185000000 | K26: 10000000 | M26: 5000000000 | N26: 500000000 | O26: 1000000 | S26: 370000000 | U26: 370000000 | V26: 300000000 | W26: 370000000 | X26: 370000000 | Y26: 37000000 | Z26: 2000000 | AB26: 1000000000 | AC26: 100000000 | AD26: 200000
B27: トレーサー実験室２ | C27: 109 | H27: 50000000 | I27: 50000000 | J27: 50000000 | K27: 10000000 | M27: 5000000000 | N27: 500000000 | O27: 1000000 | P27: =AE27*5 -> 75000 | W27: 10000000 | X27: 10000000 | Y27: 10000000 | Z27: 2000000 | AB27: 1000000000 | AC27: 100000000 | AD27: 200000 | AE27: 15000
B28: 分析機器室３ | C28: 104 | H28: 50000000 | I28: 50000000 | J28: 50000000 | K28: 10000000 | M28: 200000000 | N28: 200000000 | O28: 1000000 | W28: 10000000 | X28: 10000000 | Y28: 10000000 | Z28: 2000000 | AB28: 40000000 | AC28: 40000000 | AD28: 200000
B29: 化学分析室 | C29: 104 | H29: 50000000 | I29: 50000000 | J29: 50000000 | K29: 10000000 | M29: 200000000 | N29: 200000000 | O29: 1000000 | W29: 10000000 | X29: 10000000 | Y29: 10000000 | Z29: 2000000 | AB29: 40000000 | AC29: 40000000 | AD29: 200000
B30: 細胞分画調整室 | C30: 104 | H30: 50000000 | I30: 50000000 | J30: 50000000 | K30: 10000000 | M30: 200000000 | N30: 200000000 | O30: 1000000 | W30: 10000000 | X30: 10000000 | Y30: 10000000 | Z30: 2000000 | AB30: 40000000 | AC30: 40000000 | AD30: 200000
B31: 動物実験室１ | C31: 104 | H31: 50000000 | I31: 50000000 | J31: 50000000 | K31: 10000000 | M31: 200000000 | N31: 200000000 | O31: 1000000 | W31: 10000000 | X31: 10000000 | Y31: 10000000 | Z31: 2000000 | AB31: 40000000 | AC31: 40000000 | AD31: 200000
B32: 動物飼育室１ | C32: 104 | H32: 50000000 | I32: 50000000 | J32: 50000000 | K32: 10000000 | M32: 200000000 | N32: 200000000 | O32: 1000000 | W32: 10000000 | X32: 10000000 | Y32: 10000000 | Z32: 2000000 | AB32: 40000000 | AC32: 40000000 | AD32: 200000
B33: 動物実験室２ | C33: 009 | D33: =S33*5 -> 1850000000 | E33: =T33*2 -> 192000000 | F33: =U33*5 -> 2500000000 | G33: =V33*2 -> 100000000 | H33: 50000000 | I33: 50000000 | J33: 50000000 | K33: 10000000 | M33: 200000000 | N33: 200000000 | O33: 1000000 | S33: 370000000 | T33: 96000000 | U33: 500000000 | V33: 50000000 | W33: 10000000 | X33: 10000000 | Y33: 10000000 | Z33: 2000000 | AB33: 40000000 | AC33: 40000000 | AD33: 200000
B34: 動物飼育室２ | C34: 010 | D34: =S34*5 -> 1850000000 | E34: =T34*2 -> 192000000 | F34: =U34*5 -> 500000000 | G34: =V34*2 -> 40000000 | H34: 50000000 | I34: 50000000 | J34: 50000000 | K34: 10000000 | M34: 200000000 | N34: 200000000 | O34: 1000000 | S34: 370000000 | T34: 96000000 | U34: 100000000 | V34: 20000000 | W34: 10000000 | X34: 10000000 | Y34: 10000000 | Z34: 2000000 | AB34: 40000000 | AC34: 40000000 | AD34: 200000
B35: 動物実験室３ | C35: 104 | H35: 50000000 | I35: 50000000 | J35: 50000000 | K35: 10000000 | M35: 200000000 | N35: 200000000 | O35: 1000000 | W35: 10000000 | X35: 10000000 | Y35: 10000000 | Z35: 2000000 | AB35: 40000000 | AC35: 40000000 | AD35: 200000
B36: 動物乾燥室 | C36: 110 | D36: =S36*5 -> 1850000000 | E36: =T36*2 -> 192000000 | F36: =U36*5 -> 925000000 | G36: =V36*2 -> 300000000 | H36: 2775000000 | I36: 385000000 | J36: 50000000 | K36: 6000000 | M36: 5000000000 | N36: 500000000 | O36: 1000000 | S36: 370000000 | T36: 96000000 | U36: 185000000 | V36: 150000000 | W36: 555000000 | X36: 77000000 | Y36: 10000000 | Z36: 1200000 | AB36: 1000000000 | AC36: 100000000 | AD36: 200000
B37: 測定室 | C37: 104 | D37: =S37*5 -> 185000000 | F37: =U37*5 -> 185000000 | G37: =V37*2 -> 60000000 | H37: 50000000 | I37: 50000000 | J37: 50000000 | K37: 10000000 | M37: 200000000 | N37: 200000000 | O37: 1000000 | S37: 37000000 | U37: 37000000 | V37: 30000000 | W37: 10000000 | X37: 10000000 | Y37: 10000000 | Z37: 2000000 | AB37: 40000000 | AC37: 40000000 | AD37: 200000
B38: 植物組織培養室 | C38: 104 | H38: 50000000 | I38: 50000000 | J38: 50000000 | K38: 10000000 | M38: 200000000 | N38: 200000000 | O38: 1000000 | W38: 10000000 | X38: 10000000 | Y38: 10000000 | Z38: 2000000 | AB38: 40000000 | AC38: 40000000 | AD38: 200000
B39: 研究開発室 | C39: 104 | H39: 50000000 | I39: 50000000 | J39: 50000000 | K39: 10000000 | M39: 200000000 | N39: 200000000 | O39: 1000000 | W39: 10000000 | X39: 10000000 | Y39: 10000000 | Z39: 2000000 | AB39: 40000000 | AC39: 40000000 | AD39: 200000
B40: 分子細胞実験室P２ | C40: 011 | D40: =S40*5 -> 1850000000 | E40: =T40*2 -> 1920000000 | F40: =U40*5 -> 1850000000 | G40: =V40*2 -> 600000000 | H40: 1850000000 | I40: 1850000000 | J40: 185000000 | K40: 10000000 | M40: 200000000 | N40: 200000000 | O40: 1000000 | S40: 370000000 | T40: 960000000 | U40: 370000000 | V40: 300000000 | W40: 370000000 | X40: 370000000 | Y40: 37000000 | Z40: 2000000 | AB40: 40000000 | AC40: 40000000 | AD40: 200000
B41: 分子細胞実験室P３ | C41: 111 | H41: 0 | I41: 0 | J41: 0 | M41: =AB41*5 -> 1000000000 | N41: =AC41*5 -> 100000000 | AB41: 200000000 | AC41: 20000000
B42: 前処理蒸留室 | C42: 112 | H42: 50000000 | I42: 50000000 | J42: 50000000 | K42: =Z42*5 -> 10000000 | M42: =AB42*5 -> 200000000 | N42: =AC42*5 -> 20000000 | O42: =AD42*5 -> 100000 | W42: 10000000 | X42: 10000000 | Y42: 10000000 | Z42: 2000000 | AB42: 40000000 | AC42: 4000000 | AD42: 20000
B43: 小動物用CT室 | C43: 113 | D43: =S43*5 -> 1850000000 | E43: =T43*2 -> 1920000000 | F43: =U43*5 -> 925000000 | G43: =V43*2 -> 300000000 | H43: 1850000000 | I43: 1850000000 | J43: 125000000 | S43: 370000000 | T43: 960000000 | U43: 185000000 | V43: 150000000 | W43: 370000000 | X43: 370000000 | Y43: 25000000
B44: SPECT室 | C44: 114 | D44: =S44*5 -> 250000000 | F44: =U44*5 -> 250000000 | G44: =V44*2 -> 100000000 | H44: 5550000000 | I44: 500000000 | J44: 100000000 | S44: 50000000 | U44: 50000000 | V44: 50000000 | W44: 1110000000 | X44: 100000000 | Y44: 20000000
B45: 高レベルトレーサー実験室 | C45: 115 | H45: 2775000000 | I45: 385000000 | J45: 250000000 | K45: =Z45*5 -> 10000000 | M45: =AB45*5 -> 10000000000 | N45: 1000000000 | O45: 1000000 | W45: 555000000 | X45: 77000000 | Y45: 50000000 | Z45: 2000000 | AB45: 2000000000 | AC45: 200000000 | AD45: 200000
B46: GMP検定室 | C46: 012 | D46: =S46*5 -> 2500000000 | F46: =U46*5 -> 10000000000 | G46: =V46*2 -> 100000000 | H46: 50000000 | I46: 50000000 | J46: 50000000 | K46: =Z46*5 -> 10000000 | M46: 200000000 | N46: 200000000 | O46: 1000000 | S46: 500000000 | U46: 2000000000 | V46: 50000000 | W46: 10000000 | X46: 10000000 | Y46: 10000000 | Z46: 2000000 | AB46: 40000000 | AC46: 40000000 | AD46: 200000

Sheet three_month_max
B2: 使用室 | C2: 場所 | D2: 1 | E2: 2 | F2: 3 | G2: 4 | H2: 5 | I2: 6 | J2: 7 | K2: 8 | L2: 9 | M2: 10 | N2: 11 | O2: 12 | P2: 13
B3: サイクロトロン室 | C3: 001 | D3: 6840000000000 | E3: 240000000000 | F3: 10080000000000 | G3: 33800000000
B4: ホットラボ室セル内 | C4: 001 | D4: 6840000000000 | E4: 240000000000 | F4: 10080000000000 | G4: 33800000000
B5: ホットラボ室セル外 | C5: 002 | D5: 684000000000 | F5: 960000000000 | G5: 33800000000
B6: 小中動物用PETカメラ室 | C6: 003 | D6: 234000000000 | E6: 240000000000 | F6: 120000000000 | G6: 13000000000 | H6: 1850000000 | I6: 1850000000 | J6: 37000000
B7: サル乾燥室 | C7: 004 | D7: 22200000000 | E7: 24000000000 | F7: 22200000000 | G7: 1250000000 | H7: 1000000000 | I7: 1000000000 | J7: 1000000000
B8: サル一時飼育室 | C8: 005 | D8: 3600000000 | E8: 22500000000 | F8: 7200000000 | G8: 1250000000 | H8: 800000000 | I8: 800000000 | J8: 800000000
B9: 配分室 | C9: 006 | D9: 22200000000 | F9: 22200000000 | G9: 7500000000 | H9: 20000000000 | I9: 2250000000 | J9: 1500000000 | K9: 38000000 | L9: 18500000000 | M9: 75000000000 | N9: 2000000000 | O9: 500000 | P9: 75000
B10: 廃棄物仕分室 | C10: 101 | D10: 2220000000 | E10: 2400000000 | F10: 2220000000 | G10: 750000000 | H10: 3950000000 | I10: 760000000 | J10: 750000000 | K10: 1500000 | L10: 3950000000 | M10: 7500000000 | N10: 1000000000 | O10: 50000 | P10: 75000
B11: 物理実験室 | C11: 103 | H11: 200000000 | I11: 200000000 | J11: 200000000 | K11: 38000000 | M11: 1500000000 | N11: 1500000000 | O11: 500000
B12: 化学実験室 | C12: 103 | H12: 200000000 | I12: 200000000 | J12: 200000000 | K12: 38000000 | M12: 1500000000 | N12: 1500000000 | O12: 500000
B13: 分析機器室２ | C13: 104 | H13: 200000000 | I13: 200000000 | J13: 200000000 | K13: 38000000 | M13: 1500000000 | N13: 1500000000 | O13: 500000
B14: 暗室１ | C14: 105 | H14: 20000000 | I14: 20000000 | J14: 20000000 | K14: 20000000 | M14: 150000000 | N14: 150000000 | O14: 50000
B15: 暗室２ | C15: 105 | H15: 20000000 | I15: 20000000 | J15: 20000000 | K15: 20000000 | M15: 150000000 | N15: 150000000 | O15: 50000
B16: 暗室３ | C16: 105 | H16: 20000000 | I16: 20000000 | J16: 20000000 | K16: 20000000 | M16: 150000000 | N16: 150000000 | O16: 50000
B17: 分析機器室１ | C17: 104 | H17: 200000000 | I17: 200000000 | J17: 200000000 | K17: 38000000 | M17: 1500000000 | N17: 1500000000 | O17: 500000
B18: 細胞病理実験室 | C18: 007 | D18: 22200000000 | E18: 24000000000 | F18: 22200000000 | G18: 4800000000 | H18: 1850000000 | I18: 1850000000 | J18: 370000000 | K18: 38000000 | M18: 1500000000 | N18: 1500000000 | O18: 500000
B19: 動物組織培養室 | C19: 104 | H19: 200000000 | I19: 200000000 | J19: 200000000 | K19: 38000000 | M19: 1500000000 | N19: 1500000000 | O19: 500000
B20: 測定後処理室 | C20: 104 | H20: 200000000 | I20: 200000000 | J20: 200000000 | K20: 38000000 | M20: 1500000000 | N20: 1500000000 | O20: 500000
B21: β線測定室 | C21: 008 | D21: 2220000000 | F21: 2220000000 | G21: 750000000 | H21: 200000000 | I21: 200000000 | J21: 200000000 | K21: 38000000 | M21: 1500000000 | N21: 1500000000 | O21: 500000 | P21: 75000
B22: γ線測定室 | C22: 008 | D22: 2220000000 | F22: 2220000000 | G22: 750000000 | H22: 200000000 | I22: 200000000 | J22: 200000000 | K22: 38000000 | M22: 1500000000 | N22: 1500000000 | O22: 500000 | P22: 75000
B23: 暗室４ | C23: 105 | H23: 20000000 | I23: 20000000 | J23: 20000000 | K23: 20000000 | M23: 150000000 | N23: 150000000 | O23: 50000
B24: 暗室５ | C24: 105 | H24: 20000000 | I24: 20000000 | J24: 20000000 | K24: 20000000 | M24: 150000000 | N24: 150000000 | O24: 50000
B25: 液クロ測定室 | C25: 104 | H25: 200000000 | I25: 200000000 | J25: 200000000 | K25: 38000000 | M25: 1500000000 | N25: 1500000000 | O25: 500000
B26: トレーサー実験室１ | C26: 006 | D26: 22200000000 | F26: 22200000000 | G26: 7500000000 | H26: 1850000000 | I26: 1850000000 | J26: 370000000 | K26: 38000000 | M26: 7500000000 | N26: 1000000000 | O26: 500000
B27: トレーサー実験室２ | C27: 109 | H27: 200000000 | I27: 200000000 | J27: 200000000 | K27: 38000000 | M27: 7500000000 | N27: 1000000000 | O27: 500000 | P27: 75000
B28: 分析機器室３ | C28: 104 | H28: 200000000 | I28: 200000000 | J28: 200000000 | K28: 38000000 | M28: 1500000000 | N28: 1500000000 | O28: 500000
B29: 化学分析室 | C29: 104 | H29: 200000000 | I29: 200000000 | J29: 200000000 | K29: 38000000 | M29: 1500000000 | N29: 1500000000 | O29: 500000
B30: 細胞分画調整室 | C30: 104 | H30: 200000000 | I30: 200000000 | J30: 200000000 | K30: 38000000 | M30: 1500000000 | N30: 1500000000 | O30: 500000
B31: 動物実験室１ | C31: 104 | H31: 200000000 | I31: 200000000 | J31: 200000000 | K31: 38000000 | M31: 1500000000 | N31: 1500000000 | O31: 500000
B32: 動物飼育室１ | C32: 104 | H32: 200000000 | I32: 200000000 | J32: 200000000 | K32: 38000000 | M32: 1500000000 | N32: 1500000000 | O32: 500000
B33: 動物実験室２ | C33: 009 | D33: 22200000000 | E33: 2400000000 | F33: 30000000000 | G33: 1250000000 | H33: 200000000 | I33: 200000000 | J33: 200000000 | K33: 38000000 | M33: 1500000000 | N33: 1500000000 | O33: 500000
B34: 動物飼育室２ | C34: 010 | D34: 22200000000 | E34: 2400000000 | F34: 6000000000 | G34: 1200000000 | H34: 200000000 | I34: 200000000 | J34: 200000000 | K34: 38000000 | M34: 1500000000 | N34: 1500000000 | O34: 500000
B35: 動物実験室３ | C35: 104 | H35: 200000000 | I35: 200000000 | J35: 200000000 | K35: 38000000 | M35: 1500000000 | N35: 1500000000 | O35: 500000
B36: 動物乾燥室 | C36: 110 | D36: 22200000000 | E36: 2400000000 | F36: 11100000000 | G36: 7500000000 | H36: 3950000000 | I36: 760000000 | J36: 200000000 | K36: 1500000 | M36: 7500000000 | N36: 1000000000 | O36: 500000
B37: 測定室 | C37: 104 | D37: 2220000000 | F37: 2220000000 | G37: 750000000 | H37: 200000000 | I37: 200000000 | J37: 200000000 | K37: 38000000 | M37: 1500000000 | N37: 1500000000 | O37: 500000
B38: 植物組織培養室 | C38: 104 | H38: 200000000 | I38: 200000000 | J38: 200000000 | K38: 38000000 | M38: 1500000000 | N38: 1500000000 | O38: 500000
B39: 研究開発室 | C39: 104 | H39: 200000000 | I39: 200000000 | J39: 200000000 | K39: 38000000 | M39: 1500000000 | N39: 1500000000 | O39: 500000
B40: 分子細胞実験室P２ | C40: 011 | D40: 22200000000 | E40: 24000000000 | F40: 22200000000 | G40: 7500000000 | H40: 1850000000 | I40: 1850000000 | J40: 370000000 | K40: 38000000 | M40: 1500000000 | N40: 1500000000 | O40: 500000
B41: 分子細胞実験室P３ | C41: 111 | M41: 7500000000 | N41: 80000000
B42: 前処理蒸留室 | C42: 112 | H42: 200000000 | I42: 200000000 | J42: 200000000 | K42: 38000000 | M42: 1500000000 | N42: 150000000 | O42: 50000
B43: 小動物用CT室 | C43: 113 | D43: 22200000000 | E43: 24000000000 | F43: 11100000000 | G43: 3900000000 | H43: 1850000000 | I43: 1850000000 | J43: 370000000
B44: SPECT室 | C44: 114 | D44: 1250000000 | F44: 1250000000 | G44: 1250000000 | H44: 10000000000 | I44: 1000000000 | J44: 100000000
B45: 高レベルトレーサー実験室 | C45: 115 | H45: 3950000000 | I45: 760000000 | J45: 750000000 | K45: 38000000 | M45: 75000000000 | N45: 2000000000 | O45: 500000
B46: GMP検定室 | C46: 012 | D46: 30000000000 | F46: 12000000000 | G46: 1250000000 | H46: 200000000 | I46: 200000000 | J46: 200000000 | K46: 38000000 | M46: 1500000000 | N46: 1500000000 | O46: 500000
